Workbook

Sheet Deutschland
A1: Daten der Finanzagentur | N1: Bewertung der Anleihen | R1: Nelson-Siegel-Svensson Modellparameter
A2: WKN | B2: Bezeichnung | C2: Laufzeit (Tage) | D2: Laufzeit (Monate) | E2: Laufzeit (Jahre) | F2: Kupon | G2: Kuponwert | H2: Kuponfälligkeit | I2: Tage bis Kuponfälligkeit | J2: Fälligkeit | K2: Tatsächlicher Preis | L2: Theoretischer Preis | N2: Ausgangsdatum | P2: 2023-12-07 | R2: β0 | S2: β1 | T2: β2 | U2: β3 | V2: λ | W2: μ | X2: β0+β1
A3: 110487 | B3: 0,000 BSA 22 | C3: =J3-$P$2 -> 99 | D3: =DATEDIF($P$2,J3,"M") -> 3 | E3: =DATEDIF($P$2,J3,"Y") -> 0 | F3: 0 | G3: =100*F3 -> 0 | H3: 2024-03-15 | I3: =H3-$P$2 -> 99 | J3: 2024-03-15 | K3: 99.063 | L3: =SUM(G3/((1+$P$6)^(I3/$P$3)))+(100/((1+$P$6)^(C3/$P$3))) -> 99.00056331 | N3: Tage im Jahr | P3: 360 | R3: 1.166415662 | S3: -1.122776019 | T3: -0.7442669739 | U3: -3.417569221 | V3: 11 | W3: 70.195 | X3: =R3+S3 -> 0.04363964331
A4: 114179 | B4: 0,000 BO S 179 | C4: 120 | D4: 3 | E4: 0 | F4: 0 | G4: =100*F4 -> 0 | H4: 2024-04-05 | I4: 120 | J4: 2024-04-05 | K4: 98.858 | L4: 98.78984911 | N4: Laufzeit (in Jahren) | O4: Laufzeit (in Tagen) | P4: Kassazinssätze
A5: 110235 | B5: 1,500 Bund 14 | C5: 160 | D5: 5 | E5: 0 | F5: 0.015 | G5: 1.5 | H5: 2024-05-15 | I5: 160 | J5: 2024-05-15 | K5: 99.12 | L5: 99.86557457 | N5: 0 | O5: =N5*$P$3 -> 0
A6: 110488 | B6: 0,200 BSA 22 | C6: 190 | D6: 6 | E6: 0 | F6: 0.002 | G6: 0.2 | H6: 2024-06-14 | I6: 190 | J6: 2024-06-14 | K6: 98.277 | L6: 98.28688356 | N6: 1 | O6: 360 | P6: =$R$3 + $S$3*((1-EXP(-N6/$V$3))/(N6/$V$3)) + $T$3*(((1-EXP(-N6/$V$3))/(N6/$V$3))-EXP(-N6/$V$3)) + $U$3*(((1-EXP(-N6/$W$3))/(N6/$W$3))-EXP(-N6/$W$3)) -> 0.03720125537
A7: 110236 | B7: 1,000 Bund 14 | C7: 252 | D7: 8 | E7: 0 | F7: 0.01 | G7: 1 | H7: 2024-08-15 | I7: 252 | J7: 2024-08-15 | K7: 98.382 | L7: 98.45034676 | N7: 2 | O7: 720 | P7: =$R$3 + $S$3*((1-EXP(-N7/$V$3))/(N7/$V$3)) + $T$3*(((1-EXP(-N7/$V$3))/(N7/$V$3))-EXP(-N7/$V$3)) + $U$3*(((1-EXP(-N7/$W$3))/(N7/$W$3))-EXP(-N7/$W$3)) -> 0.03203114686
A8: 110489 | B8: 0,400 BSA 22 | C8: 281 | D8: 9 | E8: 0 | F8: 0.004 | G8: 0.4 | H8: 2024-09-13 | I8: 281 | J8: 2024-09-13 | K8: 97.81 | L8: 97.57795985 | N8: 3 | O8: 1080 | P8: 0.02794840622
A9: 114180 | B9: 0,000BO S 180 | C9: 316 | D9: 10 | E9: 0 | F9: 0 | G9: 0 | H9: 2024-10-18 | I9: 316 | J9: 2024-10-18 | K9: 97.272 | L9: 96.8446829 | N9: 4 | O9: 1440 | P9: 0.02479272581
A10: 110490 | B10: 2,200 BSA 22 | C10: 371 | D10: 12 | E10: 1 | F10: 0.022 | G10: 2.2 | H10: 2023-12-12 | I10: 5 | J10: 2024-12-12 | K10: 99.03 | L10: =SUM(G10/((1+$P$6:$P$7)^((I10+$P$3*$N$5:$N$6)/$P$3)))+(100/((1+$P$7)^(C10/$P$3))) -> 101.1326668 | N10: 5 | O10: 1800 | P10: 0.0224223049
A11: 110237 | B11: 0,500 Bund 15 | C11: 436 | D11: 14 | E11: 1 | F11: 0.005 | G11: 0.5 | H11: 2024-02-15 | I11: 70 | J11: 2025-02-15 | K11: 97.14 | L11: =SUM(G11/((1+$P$6:$P$7)^((I11+$P$3*$N$5:$N$6)/$P$3)))+(100/((1+$P$7)^(C11/$P$3))) -> 97.23147341 | N11: 6 | O11: 2160 | P11: 0.02071195446
A12: BU2200 | B12: 2,500 BSA 23 | C12: 462 | D12: 15 | E12: 1 | F12: 0.025 | G12: 2.5 | H12: 2024-03-13 | I12: 97 | J12: 2025-03-13 | K12: 99.415 | L12: =SUM(G12/((1+$P$6:$P$7)^((I12+$P$3*$N$5:$N$6)/$P$3)))+(100/((1+$P$7)^(C12/$P$3))) -> 100.9119957 | N12: 7 | O12: 2520 | P12: 0.01955138474
A13: 114181 | B13: 0,000 BO S 181 | C13: 491 | D13: 16 | E13: 1 | F13: 0 | G13: 0 | H13: 2024-04-11 | I13: 126 | J13: 2025-04-11 | K13: 96.281 | L13: =SUM(G13/((1+$P$6:$P$7)^((I13+$P$3*$N$5:$N$6)/$P$3)))+(100/((1+$P$7)^(C13/$P$3))) -> 95.79096227 | N13: 8 | O13: 2880 | P13: 0.01884365869
A14: BU2201 | B14: 2,800 BSA 23 | C14: 553 | D14: 18 | E14: 1 | F14: 0.028 | G14: 2.8 | H14: 2024-06-12 | I14: 188 | J14: 2025-06-12 | K14: 99.916 | L14: =SUM(G14/((1+$P$6:$P$7)^((I14+$P$3*$N$5:$N$6)/$P$3)))+(100/((1+$P$7)^(C14/$P$3))) -> 100.6881179 | N14: 9 | O14: 3240 | P14: 0.01850379567
A15: 110238 | B15: 1,000 Bund 15 | C15: 617 | D15: 20 | E15: 1 | F15: 0.01 | G15: 1 | H15: 2024-08-15 | I15: 252 | J15: 2025-08-15 | K15: 97.26 | L15: =SUM(G15/((1+$P$6:$P$7)^((I15+$P$3*$N$5:$N$6)/$P$3)))+(100/((1+$P$7)^(C15/$P$3))) -> 96.66227871 | N15: 10 | O15: 3600 | P15: 0.01845751131
A16: BU2202 | B16: 3,100 BSA 23 | C16: 651 | D16: 21 | E16: 1 | F16: 0.031 | G16: 3.1 | H16: 2024-09-18 | I16: 286 | J16: 2025-09-18 | K16: 100.692 | L16: =SUM(G16/((1+$P$6:$P$7)^((I16+$P$3*$N$5:$N$6)/$P$3)))+(100/((1+$P$7)^(C16/$P$3))) -> 100.39884 | N16: 11 | O16: 3960 | P16: 0.0186400808
A17: 114182 | B17: 0,000 BO S 182 | C17: 673 | D17: 22 | E17: 1 | F17: 0 | G17: 0 | H17: 2024-10-10 | I17: 308 | J17: 2025-10-10 | K17: 95.435 | L17: =SUM(G17/((1+$P$6:$P$7)^((I17+$P$3*$N$5:$N$6)/$P$3)))+(100/((1+$P$7)^(C17/$P$3))) -> 94.2761986 | N17: 12 | O17: 4320 | P17: 0.01899531385
A18: 103071 | B18: 0,000 BO Green | C18: 673 | D18: 22 | E18: 1 | F18: 0 | G18: 0 | H18: 2024-10-10 | I18: 308 | J18: 2025-10-10 | K18: 95.6 | L18: =SUM(G18/((1+$P$6:$P$7)^((I18+$P$3*$N$5:$N$6)/$P$3)))+(100/((1+$P$7)^(C18/$P$3))) -> 94.2761986 | N18: 13 | O18: 4680 | P18: 0.01947463103
A19: BU2203 | B19: 3,100 BSA 23 II | C19: 736 | D19: 24 | E19: 2 | F19: 0.031 | G19: 3.1 | H19: 2023-12-12 | I19: 5 | J19: 2025-12-12 | K19: 101 | L19: =SUM(G19/((1+$P$6:$P$8)^((I19+$P$3*$N$5:$N$7)/$P$3)))+(100/((1+$P$8)^(C19/$P$3))) -> 103.5538445 | N19: 14 | O19: 5040 | P19: 0.02003623153
A20: 110239 | B20: 0,500 Bund 16 | C20: 801 | D20: 26 | E20: 2 | F20: 0.005 | G20: 0.5 | H20: 2024-02-15 | I20: 70 | J20: 2026-02-15 | K20: 95.86 | L20: =SUM(G20/((1+$P$6:$P$8)^((I20+$P$3*$N$5:$N$7)/$P$3)))+(100/((1+$P$8)^(C20/$P$3))) -> 95.49972037 | N20: 15 | O20: 5400 | P20: 0.02064434403
A21: 114183 | B21: 0,000 BO S 183 | C21: 855 | D21: 28 | E21: 2 | F21: 0 | G21: 0 | H21: 2024-04-10 | I21: 125 | J21: 2026-04-10 | K21: 94.585 | L21: =SUM(G21/((1+$P$6:$P$8)^((I21+$P$3*$N$5:$N$7)/$P$3)))+(100/((1+$P$8)^(C21/$P$3))) -> 93.66301227 | N21: 16 | O21: 5760 | P21: 0.02126855252
A22: 110240 | B22: 0,000 Bund 16 | C22: 982 | D22: 32 | E22: 2 | F22: 0 | G22: 0 | H22: 2024-08-15 | I22: 252 | J22: 2026-08-15 | K22: 94.045 | L22: =SUM(G22/((1+$P$6:$P$8)^((I22+$P$3*$N$5:$N$7)/$P$3)))+(100/((1+$P$8)^(C22/$P$3))) -> 92.75661814 | N22: 17 | O22: 6120 | P22: 0.02188319006
A23: 114184 | B23: 0,000 BO S 184 | C23: 1037 | D23: 34 | E23: 2 | F23: 0 | G23: 0 | H23: 2024-10-09 | I23: 307 | J23: 2026-10-09 | K23: 93.71 | L23: =SUM(G23/((1+$P$6:$P$8)^((I23+$P$3*$N$5:$N$7)/$P$3)))+(100/((1+$P$8)^(C23/$P$3))) -> 92.36681209 | N23: 18 | O23: 6480 | P23: 0.0224667939
A24: 110241 | B24: 0,250 Bund 17 | C24: 1166 | D24: 38 | E24: 3 | F24: 0.0025 | G24: 0.25 | H24: 2024-01-15 | I24: 39 | J24: 2027-02-15 | K24: 93.93 | L24: =SUM(G24/((1+$P$6:$P$9)^((I24+$P$3*$N$5:$N$8)/$P$3)))+(100/((1+$P$9)^(C24/$P$3))) -> 93.33226807 | N24: 19 | O24: 6840 | P24: 0.0230016161
A25: 114185 | B25: 0,000 BO S 185 | C25: 1226 | D25: 40 | E25: 3 | F25: 0 | G25: 0 | H25: 2024-04-16 | I25: 131 | J25: 2027-04-16 | K25: 92.9 | L25: =SUM(G25/((1+$P$6:$P$9)^((I25+$P$3*$N$5:$N$8)/$P$3)))+(100/((1+$P$9)^(C25/$P$3))) -> 91.99800194 | N25: 20 | O25: 7200 | P25: 0.02347318436
A26: 113504 | B26: 6,500 Bund 97 | C26: 1305 | D26: 42 | E26: 3 | F26: 0.065 | G26: 6.5 | H26: 2024-07-04 | I26: 210 | J26: 2027-07-04 | K26: 114.31 | L26: =SUM(G26/((1+$P$6:$P$9)^((I26+$P$3*$N$5:$N$8)/$P$3)))+(100/((1+$P$9)^(C26/$P$3))) -> 116.058483 | N26: 21 | O26: 7560 | P26: 0.0238699081
A27: 110242 | B27: 0,500 Bund 17 | C27: 1347 | D27: 44 | E27: 3 | F27: 0.005 | G27: 0.5 | H27: 2024-08-15 | I27: 252 | J27: 2027-08-15 | K27: 94.15 | L27: =SUM(G27/((1+$P$6:$P$9)^((I27+$P$3*$N$5:$N$8)/$P$3)))+(100/((1+$P$9)^(C27/$P$3))) -> 93.12593711 | N27: 22 | O27: 7920 | P27: 0.02418272551
A28: 114186 | B28: 1,300 BO S 186 | C28: 1408 | D28: 46 | E28: 3 | F28: 0.013 | G28: 1.3 | H28: 2024-10-15 | I28: 313 | J28: 2027-10-15 | K28: 96.84 | L28: =SUM(G28/((1+$P$6:$P$9)^((I28+$P$3*$N$5:$N$8)/$P$3)))+(100/((1+$P$9)^(C28/$P$3))) -> 95.7345294 | N28: 23 | O28: 8280 | P28: 0.02440478755
A29: 103074 | B29: 1,300 BO Green | C29: 1408 | D29: 46 | E29: 3 | F29: 0.013 | G29: 1.3 | H29: 2024-10-15 | I29: 313 | J29: 2027-10-15 | K29: 97.04 | L29: =SUM(G29/((1+$P$6:$P$9)^((I29+$P$3*$N$5:$N$8)/$P$3)))+(100/((1+$P$9)^(C29/$P$3))) -> 95.7345294 | N29: 24 | O29: 8640 | P29: 0.02453117528
A30: 110252 | B30: 0,000 Bund 20 | C30: 1439 | D30: 47 | E30: 3 | F30: 0 | G30: 0 | H30: 2024-11-15 | I30: 344 | J30: 2027-11-15 | K30: 91.97 | L30: =SUM(G30/((1+$P$6:$P$9)^((I30+$P$3*$N$5:$N$8)/$P$3)))+(100/((1+$P$9)^(C30/$P$3))) -> 90.67454989 | N30: 25 | O30: 9000 | P30: 0.02455864722
A31: 113506 | B31: 5,625 Bund 98 | C31: 1489 | D31: 48 | E31: 4 | F31: 0.05625 | G31: 5.625 | H31: 2024-01-04 | I31: 28 | J31: 2028-01-04 | K31: 113.35 | L31: =SUM(G31/((1+$P$6:$P$10)^((I31+$P$3*$N$5:$N$9)/$P$3)))+(100/((1+$P$10)^(C31/$P$3))) -> 117.9496392 | N31: 26 | O31: 9360 | P31: 0.02448541392
A32: 110244 | B32: 0,500 Bund 18 | C32: 1531 | D32: 50 | E32: 4 | F32: 0.005 | G32: 0.5 | H32: 2024-02-15 | I32: 70 | J32: 2028-02-15 | K32: 93.59 | L32: =SUM(G32/((1+$P$6:$P$10)^((I32+$P$3*$N$5:$N$9)/$P$3)))+(100/((1+$P$10)^(C32/$P$3))) -> 93.3672321 | N32: 27 | O32: 9720 | P32: 0.0243109369
A33: BU2500 | B33: 2,200 BO S 187 | C33: 1589 | D33: 52 | E33: 4 | F33: 0.022 | G33: 2.2 | H33: 2024-04-13 | I33: 128 | J33: 2028-04-13 | K33: 100.16 | L33: =SUM(G33/((1+$P$6:$P$10)^((I33+$P$3*$N$5:$N$9)/$P$3)))+(100/((1+$P$10)^(C33/$P$3))) -> 101.0412568 | N33: 28 | O33: 10080 | P33: 0.02403574959
A34: 113508 | B34: 4,750 Bund 98 II | C34: 1671 | D34: 54 | E34: 4 | F34: 0.0475 | G34: 4.75 | H34: 2024-07-04 | I34: 210 | J34: 2028-07-04 | K34: 111.34 | L34: =SUM(G34/((1+$P$6:$P$10)^((I34+$P$3*$N$5:$N$9)/$P$3)))+(100/((1+$P$10)^(C34/$P$3))) -> 112.4532262 | N34: 29 | O34: 10440 | P34: 0.02366129815
A35: 110245 | B35: 0,250 Bund 18 | C35: =J35-$P$2 -> 1713 | D35: =DATEDIF($P$2,J35,"M") -> 56 | E35: =DATEDIF($P$2,J35,"Y") -> 4 | F35: 0.0025 | G35: 0.25 | H35: 2024-08-15 | I35: =H35-$P$2 -> 252 | J35: 2028-08-15 | K35: 91.91 | L35: =SUM(G35/((1+$P$6:$P$10)^((I35+$P$3*$N$5:$N$9)/$P$3)))+(100/((1+$P$10)^(C35/$P$3))) -> 91.15247642 | N35: 30 | O35: 10800 | P35: 0.02318980004
A36: BU2501 | B36: 2,400 BO S 188 | C36: 1778 | D36: 58 | E36: 4 | F36: 0.024 | G36: 2.4 | H36: 2024-10-19 | I36: 317 | J36: 2028-10-19 | K36: 101.22 | L36: =SUM(G36/((1+$P$6:$P$10)^((I36+$P$3*$N$5:$N$9)/$P$3)))+(100/((1+$P$10)^(C36/$P$3))) -> 100.7655192 | N36: Mispricing | P36: =SUMSQ(K3:K70-L3:L70) -> 621.0066246
A37: 110255 | B37: 0,000 Bund 21 | C37: 1805 | D37: 59 | E37: 4 | F37: 0 | G37: 0 | H37: 2024-11-15 | I37: 344 | J37: 2028-11-15 | K37: 90.34 | L37: =SUM(G37/((1+$P$6:$P$10)^((I37+$P$3*$N$5:$N$9)/$P$3)))+(100/((1+$P$10)^(C37/$P$3))) -> 89.47767045
A38: 110246 | B38: 0,250 Bund 19 | C38: 1897 | D38: 62 | E38: 5 | F38: 0.0025 | G38: 0.25 | H38: 2024-02-15 | I38: 70 | J38: 2029-02-15 | K38: 91.19 | L38: =SUM(G38/((1+$P$6:$P$11)^((I38+$P$3*$N$5:$N$10)/$P$3)))+(100/((1+$P$11)^(C38/$P$3))) -> 91.16850776 | N38: Anpassung
A39: 110247 | B39: 0,000 Bund 19 | C39: 2078 | D39: 68 | E39: 5 | F39: 0 | G39: 0 | H39: 2024-08-15 | I39: 252 | J39: 2029-08-15 | K39: 89.08 | L39: =SUM(G39/((1+$P$6:$P$11)^((I39+$P$3*$N$5:$N$10)/$P$3)))+(100/((1+$P$11)^(C39/$P$3))) -> 88.84003974 | N39: Mittelwert (Tatsächliche Preise) | O39: =AVERAGE(K3:K70) -> 96.08016176
A40: 110262 | B40: 2,100 Bund 22 | C40: 2170 | D40: 71 | E40: 5 | F40: 0.021 | G40: 2.1 | H40: 2024-11-15 | I40: 344 | J40: 2029-11-15 | K40: 100.01 | L40: =SUM(G40/((1+$P$6:$P$11)^((I40+$P$3*$N$5:$N$10)/$P$3)))+(100/((1+$P$11)^(C40/$P$3))) -> 99.96013842 | N40: Totale Quadratsumme (SQT) | O40: =SUM((K3:K70-$O$39)^2) -> 13924.26989
A41: 113514 | B41: 6,250 Bund 00 | C41: 2220 | D41: 72 | E41: 6 | F41: 0.0625 | G41: 6.25 | H41: 2024-01-04 | I41: 28 | J41: 2030-01-04 | K41: 123.54 | L41: =SUM(G41/((1+$P$6:$P$12)^((I41+$P$3*$N$5:$N$11)/$P$3)))+(100/((1+$P$12)^(C41/$P$3))) -> 129.6146274 | N41: Residuenquadratsumme (SQR) | O41: =SUM((K3:K70-L3:L70)^2) -> 621.0066246
A42: 110249 | B42: 0,000 Bund 20 | C42: 2262 | D42: 74 | E42: 6 | F42: 0 | G42: 0 | H42: 2024-02-15 | I42: 70 | J42: 2030-02-15 | K42: 88.2 | L42: =SUM(G42/((1+$P$6:$P$12)^((I42+$P$3*$N$5:$N$11)/$P$3)))+(100/((1+$P$12)^(C42/$P$3))) -> 88.54472702 | N42: R squared | O42: =1-(O41/O40) -> 0.9554011356
A43: 110250 | B43: 0,000 Bund 20 II | C43: 2443 | D43: 80 | E43: 6 | F43: 0 | G43: 0 | H43: 2024-08-15 | I43: 252 | J43: 2030-08-15 | K43: 87.3 | L43: =SUM(G43/((1+$P$6:$P$12)^((I43+$P$3*$N$5:$N$11)/$P$3)))+(100/((1+$P$12)^(C43/$P$3))) -> 87.68691384
A44: 103070 | B44: 0,000 Bund 20 Green | C44: 2443 | D44: 80 | E44: 6 | F44: 0 | G44: 0 | H44: 2024-08-15 | I44: 252 | J44: 2030-08-15 | K44: 87.4 | L44: =SUM(G44/((1+$P$6:$P$12)^((I44+$P$3*$N$5:$N$11)/$P$3)))+(100/((1+$P$12)^(C44/$P$3))) -> 87.68691384
A45: BU2700 | B45: 2,400 Bund 23 | C45: 2535 | D45: 83 | E45: 6 | F45: 0.024 | G45: 2.4 | H45: 2024-11-15 | I45: 344 | J45: 2030-11-15 | K45: 101.83 | L45: =SUM(G45/((1+$P$6:$P$12)^((I45+$P$3*$N$5:$N$11)/$P$3)))+(100/((1+$P$12)^(C45/$P$3))) -> 102.5908968
A46: 113517 | B46: 5,500 Bund 00 | C46: 2585 | D46: 84 | E46: 7 | F46: 0.055 | G46: 5.5 | H46: 2024-01-04 | I46: 28 | J46: 2031-01-04 | K46: 122.2 | L46: =SUM(G46/((1+$P$6:$P$13)^((I46+$P$3*$N$5:$N$12)/$P$3)))+(100/((1+$P$13)^(C46/$P$3))) -> 128.2392742
A47: 110253 | B47: 0,000 Bund 21 | C47: 2627 | D47: 86 | E47: 7 | F47: 0 | G47: 0 | H47: 2024-02-15 | I47: 70 | J47: 2031-02-15 | K47: 86.33 | L47: =SUM(G47/((1+$P$6:$P$13)^((I47+$P$3*$N$5:$N$12)/$P$3)))+(100/((1+$P$13)^(C47/$P$3))) -> 87.26446486
A48: 110256 | B48: 0,000 Bund 21 II | C48: 2808 | D48: 92 | E48: 7 | F48: 0 | G48: 0 | H48: 2024-08-15 | I48: 252 | J48: 2031-08-15 | K48: 85.4 | L48: =SUM(G48/((1+$P$6:$P$13)^((I48+$P$3*$N$5:$N$12)/$P$3)))+(100/((1+$P$13)^(C48/$P$3))) -> 86.44923121
A49: 103073 | B49: 0,000 Bund 21 Green | C49: 2808 | D49: 92 | E49: 7 | F49: 0 | G49: 0 | H49: 2024-08-15 | I49: 252 | J49: 2031-08-15 | K49: 85.45 | L49: =SUM(G49/((1+$P$6:$P$13)^((I49+$P$3*$N$5:$N$12)/$P$3)))+(100/((1+$P$13)^(C49/$P$3))) -> 86.44923121
A50: 110258 | B50: 0,000 Bund 22 | C50: 2992 | D50: 98 | E50: 8 | F50: 0 | G50: 0 | H50: 2024-02-15 | I50: 70 | J50: 2032-02-15 | K50: 84.36 | L50: =SUM(G50/((1+$P$6:$P$14)^((I50+$P$3*$N$5:$N$13)/$P$3)))+(100/((1+$P$14)^(C50/$P$3))) -> 85.86605611
A51: 110260 | B51: 1,700 Bund 22 | C51: 3174 | D51: 104 | E51: 8 | F51: 0.017 | G51: 1.7 | H51: 2024-08-15 | I51: 252 | J51: 2032-08-15 | K51: 96.71 | L51: =SUM(G51/((1+$P$6:$P$14)^((I51+$P$3*$N$5:$N$13)/$P$3)))+(100/((1+$P$14)^(C51/$P$3))) -> 98.93215177
A52: BU2Z00 | B52: 2,300 Bund 23 | C52: 3358 | D52: 110 | E52: 9 | F52: 0.023 | G52: 2.3 | H52: 2024-02-15 | I52: 70 | J52: 2033-02-15 | K52: 101.3 | L52: =SUM(G52/((1+$P$6:$P$15)^((I52+$P$3*$N$5:$N$14)/$P$3)))+(100/((1+$P$15)^(C52/$P$3))) -> 105.2442032
A53: BU3Z00 | B53: 2,300 Bund 23 Green | C53: 3358 | D53: 110 | E53: 9 | F53: 0.023 | G53: 2.3 | H53: 2024-02-15 | I53: 70 | J53: 2033-02-15 | K53: 101.35 | L53: =SUM(G53/((1+$P$6:$P$15)^((I53+$P$3*$N$5:$N$14)/$P$3)))+(100/((1+$P$15)^(C53/$P$3))) -> 105.2442032
A54: BU2Z01 | B54: 2,600 Bund 23 | C54: 3539 | D54: 116 | E54: 9 | F54: 0.026 | G54: 2.6 | H54: 2024-08-15 | I54: 252 | J54: 2033-08-15 | K54: 103.67 | L54: =SUM(G54/((1+$P$6:$P$15)^((I54+$P$3*$N$5:$N$14)/$P$3)))+(100/((1+$P$15)^(C54/$P$3))) -> 106.9167154
A55: 113522 | B55: 4,750 Bund 03 | C55: 3862 | D55: 126 | E55: 10 | F55: 0.0475 | G55: 4.75 | H55: 2024-07-04 | I55: 210 | J55: 2034-07-04 | K55: 123.69 | L55: =SUM(G55/((1+$P$6:$P$15)^((I55+$P$3*$N$5:$N$14)/$P$3)))+(100/((1+$P$15)^(C55/$P$3))) -> 125.0039466
A56: 110251 | B56: 0,000 Bund 20 | C56: 4177 | D56: 137 | E56: 11 | F56: 0 | G56: 0 | H56: 2024-05-15 | I56: 160 | J56: 2035-05-15 | K56: 77.42 | L56: =SUM(G56/((1+$P$6:$P$15)^((I56+$P$3*$N$5:$N$14)/$P$3)))+(100/((1+$P$15)^(C56/$P$3))) -> 80.87980886
A57: 110254 | B57: 0,000 Bund 21 | C57: 4543 | D57: 149 | E57: 12 | F57: 0 | G57: 0 | H57: 2024-05-15 | I57: 160 | J57: 2036-05-15 | K57: 75.36 | L57: =SUM(G57/((1+$P$6:$P$15)^((I57+$P$3*$N$5:$N$14)/$P$3)))+(100/((1+$P$15)^(C57/$P$3))) -> 79.38982027
A58: 113527 | B58: 4,000 Bund 05 | C58: 4777 | D58: 156 | E58: 13 | F58: 0.04 | G58: 4 | H58: 2024-01-04 | I58: 28 | J58: 2037-01-04 | K58: 118.82 | L58: =SUM(G58/((1+$P$6:$P$15)^((I58+$P$3*$N$5:$N$14)/$P$3)))+(100/((1+$P$15)^(C58/$P$3))) -> 114.9505726
A59: 110259 | B59: 1,000 Bund 22 | C59: 5273 | D59: 173 | E59: 14 | F59: 0.01 | G59: 1 | H59: 2024-05-15 | I59: 160 | J59: 2038-05-15 | K59: 83.52 | L59: =SUM(G59/((1+$P$6:$P$15)^((I59+$P$3*$N$5:$N$14)/$P$3)))+(100/((1+$P$15)^(C59/$P$3))) -> 85.54418033
A60: 113532 | B60: 4,250 Bund 07 | C60: 5688 | D60: 186 | E60: 15 | F60: 0.0425 | G60: 4.25 | H60: 2024-07-04 | I60: 210 | J60: 2039-07-04 | K60: 123.91 | L60: =SUM(G60/((1+$P$6:$P$15)^((I60+$P$3*$N$5:$N$14)/$P$3)))+(100/((1+$P$15)^(C60/$P$3))) -> 113.2155636
A61: 113536 | B61: 4,750 Bund 08 | C61: 6054 | D61: 198 | E61: 16 | F61: 0.0475 | G61: 4.75 | H61: 2024-07-04 | I61: 210 | J61: 2040-07-04 | K61: 131.85 | L61: =SUM(G61/((1+$P$6:$P$15)^((I61+$P$3*$N$5:$N$14)/$P$3)))+(100/((1+$P$15)^(C61/$P$3))) -> 116.3429778
A62: 113543 | B62: 3,250 Bund 10 | C62: 6784 | D62: 222 | E62: 18 | F62: 0.0325 | G62: 3.25 | H62: 2024-07-04 | I62: 210 | J62: 2042-07-04 | K62: 112.31 | L62: =SUM(G62/((1+$P$6:$P$24)^((I62+$P$3*$N$5:$N$23)/$P$3)))+(100/((1+$P$24)^(C62/$P$3))) -> 116.1140184
A63: 113548 | B63: 2,500 Bund 12 | C63: 7515 | D63: 246 | E63: 20 | F63: 0.025 | G63: 2.5 | H63: 2024-07-04 | I63: 210 | J63: 2044-07-04 | K63: 101.38 | L63: =SUM(G63/((1+$P$6:$P$26)^((I63+$P$3*$N$5:$N$25)/$P$3)))+(100/((1+$P$26)^(C63/$P$3))) -> 103.4457905
A64: 110234 | B64: 2,500 Bund 14 | C64: 8287 | D64: 272 | E64: 22 | F64: 0.025 | G64: 2.5 | H64: 2024-08-15 | I64: 252 | J64: 2046-08-15 | K64: 101.86 | L64: =SUM(G64/((1+$P$6:$P$28)^((I64+$P$3*$N$5:$N$27)/$P$3)))+(100/((1+$P$28)^(C64/$P$3))) -> 102.5603982
A65: 110243 | B65: 1,250 Bund 17 | C65: 9018 | D65: 296 | E65: 24 | F65: 0.0125 | G65: 1.25 | H65: 2024-08-15 | I65: 252 | J65: 2048-08-15 | K65: 79.52 | L65: =SUM(G65/((1+$P$6:$P$30)^((I65+$P$3*$N$5:$N$29)/$P$3)))+(100/((1+$P$30)^(C65/$P$3))) -> 78.42490387
A66: 110248 | B66: 0,000 Bund 19 | C66: 9748 | D66: 320 | E66: 26 | F66: 0 | G66: 0 | H66: 2024-08-15 | I66: 252 | J66: 2050-08-15 | K66: 54.21 | L66: =SUM(G66/((1+$P$6:$P$32)^((I66+$P$3*$N$5:$N$31)/$P$3)))+(100/((1+$P$32)^(C66/$P$3))) -> 52.18308749
A67: 103072 | B67: 0,000 Bund 21 Green | C67: 9748 | D67: 320 | E67: 26 | F67: 0 | G67: 0 | H67: 2024-08-15 | I67: =H67-$P$2 -> 252 | J67: 2050-08-15 | K67: 54.48 | L67: =SUM(G67/((1+$P$6:$P$32)^((I67+$P$3*$N$5:$N$31)/$P$3)))+(100/((1+$P$32)^(C67/$P$3))) -> 52.18308749
A68: 110257 | B68: 0,000 Bund 21 | C68: 10479 | D68: 344 | E68: 28 | F68: 0 | G68: =100*F68 -> 0 | H68: 2024-08-15 | I68: 252 | J68: 2052-08-15 | K68: 51.74 | L68: =SUM(G68/((1+$P$6:$P$34)^((I68+$P$3*$N$5:$N$33)/$P$3)))+(100/((1+P34)^(C68/$P$3))) -> 50.62528684
A69: 110261 | B69: 1,800 Bund 22 | C69: 10844 | D69: 356 | E69: 29 | F69: 0.018 | G69: 1.8 | H69: 2024-08-15 | I69: 252 | J69: 2053-08-15 | K69: 88.04 | L69: =SUM(G69/((1+$P$6:$P$35)^((I69+$P$3*$N$5:$N$34)/$P$3)))+(100/((1+$P$35)^(C69/$P$3))) -> 89.32181871
A70: 103075 | B70: 1,800 Bund 23 Green | C70: 10844 | D70: 356 | E70: 29 | F70: 0.018 | G70: 1.8 | H70: 2024-08-15 | I70: 252 | J70: 2053-08-15 | K70: 88.22 | L70: =SUM(G70/((1+$P$6:$P$35)^((I70+$P$3*$N$5:$N$34)/$P$3)))+(100/((1+$P$35)^(C70/$P$3))) -> 89.32181871
A72: Rastersuche
A75: μ λ | B75: 0.1 | C75: 1 | D75: 10 | E75: 25 | F75: 50 | G75: 75 | H75: 100
A76: 0.1 | B76: 0.9354405214 | C76: 0.9408639175 | D76: 0.9361896422 | E76: 0.9498523428 | F76: 0.9496370769 | G76: 0.949447291 | H76: 0.9493392519
A77: 1 | B77: 0.9405705222 | C77: 0.942036413 | D77: 0.9391141627 | E77: 0.950609939 | F77: 0.9502393505 | G77: 0.9496584034 | H77: 0.9493686739
A78: 10 | B78: 0.949216846 | C78: 0.950740411 | D78: 0.9476668965 | E78: 0.9487309836 | F78: 0.9476981222 | G78: 0.9552412805 | H78: 0.9469040348
A79: 25 | B79: 0.9491670763 | C79: 0.9508462733 | D79: 0.9490107247 | E79: 0.9446721316 | F79: 0.9405695637 | G79: 0.9446553586 | H79: 0.9446997594
A80: 50 | B80: 0.9496814327 | C80: 0.9502182827 | D80: 0.9469541929 | E80: 0.9449236188 | F80: 0.9438766464 | G80: 0.9439208133 | H80: 0.9439360494
A81: 75 | B81: 0.9494752992 | C81: 0.9491823107 | D81: 0.947141555 | E81: 0.9444444066 | F81: 0.9439083275 | G81: 0.9436249507 | H81: 0.9436542997
A82: 100 | B82: 0.9493566465 | C82: 0.9485133654 | D82: 0.9471204711 | E82: 0.9445045351 | F82: 0.9438917309 | G82: 0.9436555101 | H82: 0.9424881186
A86: μ λ | B86: 70 | C86: 71 | D86: 72 | E86: 73 | F86: 74 | G86: 75 | H86: 76 | I86: 77 | J86: 78 | K86: 79
A87: 5 | B87: 0.9544310171 | C87: 0.9544348027 | D87: 0.9544384339 | E87: 0.9544419199 | F87: 0.9544452695 | G87: 0.9544484905 | H87: 0.9544515906 | I87: 0.9544545762 | J87: 0.9544574538 | K87: 0.9544602293
A88: 6 | B88: 0.9548954256 | C88: 0.9548987238 | D88: 0.9549018715 | E88: 0.954904879 | F88: 0.9549077556 | G88: 0.9549105096 | H88: 0.9549131488 | I88: 0.9549156804 | J88: 0.9549181107 | K88: 0.9549204459
A89: 7 | B89: 0.9551501843 | C89: 0.9551531544 | D89: 0.9551559667 | E89: 0.9551586338 | F89: 0.9551611667 | G89: 0.9551635751 | H89: 0.9551658678 | I89: 0.9551680532 | J89: 0.9551701388 | K89: 0.9551721314
A90: 8 | B90: 0.9552730928 | C90: 0.955276466 | D90: 0.955279619 | E90: 0.9552825715 | F90: 0.9552853423 | G90: 0.9552879463 | H90: 0.9552903973 | I90: 0.9552927083 | J90: 0.955294891 | K90: 0.955296954
A91: 9 | B91: 0.9553450444 | C91: 0.9553065683 | D91: 0.9472464386 | E91: 0.9473790201 | F91: 0.9477974528 | G91: 0.9477932956 | H91: 0.9477970325 | I91: 0.947804074 | J91: 0.947811287 | K91: 0.9478175944
A92: 10 | B92: 0.9551772248 | C92: 0.9468720623 | D92: 0.9552141406 | E92: 0.9464097869 | F92: 0.9552784444 | G92: 0.9552412805 | H92: 0.9552482596 | I92: 0.9553492131 | J92: 0.9552566478 | K92: 0.9552656948
A93: 11 | B93: 0.9553534142 | C93: 0.947062321 | D93: 0.9470486089 | E93: 0.9470358625 | F93: 0.9470222441 | G93: 0.9470063289 | H93: 0.9469920506 | I93: 0.9469940742 | J93: 0.9469730246 | K93: 0.9469662724
A94: 12 | B94: 0.9464916811 | C94: 0.9464901312 | D94: 0.9465462171 | E94: 0.9465392187 | F94: 0.9465481928 | G94: 0.9465876328 | H94: 0.9465506789 | I94: 0.9465522458 | J94: 0.9465579191 | K94: 0.946558261
A95: 13 | B95: 0.9462853448 | C95: 0.9462594621 | D95: 0.9462584498 | E95: 0.94625988 | F95: 0.9462611988 | G95: 0.9462549634 | H95: 0.9462489446 | I95: 0.9462435045 | J95: 0.9462391014 | K95: 0.9462652257
A96: 14 | B96: 0.945916804 | C96: 0.9458869392 | D96: 0.9459211424 | E96: 0.9461841062 | F96: 0.9464578417 | G96: 0.9464873615 | H96: 0.9465152506 | I96: 0.9465320381 | J96: 0.9465285197 | K96: 0.946540858
A97: 15 | B97: 0.9458481309 | C97: 0.9458469874 | D97: 0.9458515743 | E97: 0.9458490092 | F97: 0.9458466339 | G97: 0.9458447801 | H97: 0.9458433376 | I97: 0.9458420681 | J97: 0.9458409455 | K97: 0.9458399633
A101: μ λ | B101: 65 | C101: 66 | D101: 67 | E101: 68 | F101: 69 | G101: 70 | H101: 71 | I101: 72 | J101: 73 | K101: 74
A102: 8 | B102: 0.9552520106 | C102: 0.9552568967 | D102: 0.9552614113 | E102: 0.9552655937 | F102: 0.9552694778 | G102: 0.9552730928 | H102: 0.955276466 | I102: 0.955279619 | J102: 0.9552825715 | K102: 0.9552853423
A103: 9 | B103: 0.9552533758 | C103: 0.9552638194 | D103: 0.9552876952 | E103: 0.955294252 | F103: 0.9553364007 | G103: 0.9553450444 | H103: 0.9553065683 | I103: 0.9472464386 | J103: 0.9473790201 | K103: 0.9477974528
A104: 10 | B104: 0.9552379959 | C104: 0.9553517099 | D104: 0.9551671463 | E104: 0.9551488426 | F104: 0.9551684692 | G104: 0.9551772248 | H104: 0.9468720623 | I104: 0.9552141406 | J104: 0.9464097869 | K104: 0.9552784444
A105: 11 | B105: 0.9471559874 | C105: 0.9471729605 | D105: 0.9471868762 | E105: 0.9471986832 | F105: 0.9472089538 | G105: 0.9553534142 | H105: 0.947062321 | I105: 0.9470486089 | J105: 0.9470358625 | K105: 0.9470222441
A106: 12 | B106: 0.9466337534 | C106: 0.9465020143 | D106: 0.946510081 | E106: 0.9465107708 | F106: 0.946505929 | G106: 0.9464916811 | H106: 0.9464901312 | I106: 0.9465462171 | J106: 0.9465392187 | K106: 0.9465481928
A110: μ λ | B110: 69.5 | C110: 69.6 | D110: 69.7 | E110: 69.8 | F110: 69.9 | G110: 70 | H110: 70.1 | I110: 70.2 | J110: 70.3 | K110: 70.4
A111: 10.5 | B111: 0.9550438339 | C111: 0.9550446053 | D111: 0.9550464313 | E111: 0.9550998828 | F111: 0.9550811167 | G111: 0.955074305 | H111: 0.955069778 | I111: 0.9550675744 | J111: 0.9550675131 | K111: 0.9550687244
A112: 10.6 | B112: 0.9550438616 | C112: 0.9471483759 | D112: 0.9550291582 | E112: 0.9550305796 | F112: 0.9550208939 | G112: 0.9552741692 | H112: 0.955026075 | I112: 0.9550876089 | J112: 0.9550844366 | K112: 0.9470615738
A113: 10.7 | B113: 0.9550422252 | C113: 0.954997181 | D113: 0.9549755923 | E113: 0.9549832614 | F113: 0.9550372644 | G113: 0.9552019164 | H113: 0.9553413787 | I113: 0.955293618 | J113: 0.9550693071 | K113: 0.9550206641
A114: 10.8 | B114: 0.9470134793 | C114: 0.9470117761 | D114: 0.9470101006 | E114: 0.9470084319 | F114: 0.9470067811 | G114: 0.9470051356 | H114: 0.9470035143 | I114: 0.9470019027 | J114: 0.9470003077 | K114: 0.9469987414
A115: 10.9 | B115: 0.94708977 | C115: 0.9470692637 | D115: 0.947067188 | E115: 0.9470838017 | F115: 0.9470630523 | G115: 0.9470610296 | H115: 0.9470590032 | I115: 0.9470569639 | J115: 0.9470549411 | K115: 0.9470529459
A116: 11 | B116: 0.9553144656 | C116: 0.9553173689 | D116: 0.9553227565 | E116: 0.9553288953 | F116: 0.9553351994 | G116: 0.9553534142 | H116: 0.9553667299 | I116: 0.9552560869 | J116: 0.9553475023 | K116: 0.9470650987
A117: 11.1 | B117: 0.9471531931 | C117: 0.9471539997 | D117: 0.947157394 | E117: 0.9471555951 | F117: 0.9471563794 | G117: 0.9471571628 | H117: 0.9471579381 | I117: 0.9471587061 | J117: 0.9471594701 | K117: 0.9471602295
A118: 11.2 | B118: 0.9467494883 | C118: 0.9468275967 | D118: 0.9548199423 | E118: 0.954959349 | F118: 0.9548860212 | G118: 0.946954455 | H118: 0.9469594278 | I118: 0.9469641643 | J118: 0.9469686789 | K118: 0.9469729701
A119: 11.3 | B119: 0.9466872738 | C119: 0.9466881117 | D119: 0.9468253604 | E119: 0.9468253831 | F119: 0.9468254161 | G119: 0.9468254584 | H119: 0.9468255129 | I119: 0.9468255844 | J119: 0.9468256604 | K119: 0.9468257573
A120: 11.4 | B120: 0.9465604781 | C120: 0.9465603407 | D120: 0.9465603012 | E120: 0.9465605106 | F120: 0.9465607624 | G120: 0.9465610443 | H120: 0.94656136 | I120: 0.9465617023 | J120: 0.9465620676 | K120: 0.9465624554
A121: 11.5 | B121: 0.9466123519 | C121: 0.9466099368 | D121: 0.9466074491 | E121: 0.9466048426 | F121: 0.9466021302 | G121: 0.9465993313 | H121: 0.9465964265 | I121: 0.9465934368 | J121: 0.9465903565 | K121: 0.9466067986
A125: μ λ | B125: 70.05 | C125: 70.06 | D125: 70.07 | E125: 70.08 | F125: 70.09 | G125: 70.1 | H125: 70.11 | I125: 70.12 | J125: 70.13 | K125: 70.14
A126: 10.95 | B126: 0.9551948016 | C126: 0.9549756232 | D126: 0.9471431898 | E126: 0.9470269556 | F126: 0.9472172987 | G126: 0.9549812662 | H126: 0.9548906547 | I126: 0.9550561455 | J126: 0.9548824968 | K126: 0.946987875
A127: 10.96 | B127: 0.946805884 | C127: 0.9467935536 | D127: 0.9468421566 | E127: 0.9471733322 | F127: 0.9471755562 | G127: 0.9471300011 | H127: 0.9471293907 | I127: 0.9471287273 | J127: 0.9471280865 | K127: 0.9471625569
A128: 10.97 | B128: 0.9466820337 | C128: 0.9466812244 | D128: 0.9466806795 | E128: 0.94668097 | F128: 0.9466871744 | G128: 0.9548853736 | H128: 0.9467111851 | I128: 0.9467044935 | J128: 0.9467576538 | K128: 0.9551677934
A129: 10.98 | B129: 0.9472333118 | C129: 0.9472333849 | D129: 0.9472334641 | E129: 0.9472335425 | F129: 0.9472336169 | G129: 0.947233694 | H129: 0.9472335746 | I129: 0.9472338465 | J129: 0.9472339215 | K129: 0.9472339989
A130: 10.99 | B130: 0.9470565433 | C130: 0.9470564587 | D130: 0.947056373 | E130: 0.9470562941 | F130: 0.9470562164 | G130: 0.9470561228 | H130: 0.9470560401 | I130: 0.9470559458 | J130: 0.9470558671 | K130: 0.9470557797
A131: 11 | B131: 0.9553555565 | C131: 0.9553581915 | D131: 0.9553608011 | E131: 0.9553622135 | F131: 0.9553641944 | G131: 0.9553667299 | H131: 0.9553692659 | I131: 0.9553723307 | J131: 0.9553751153 | K131: 0.9553785274
A132: 11.01 | B132: 0.9552544216 | C132: 0.955211432 | D132: 0.9471077611 | E132: 0.9470112388 | F132: 0.9469900267 | G132: 0.9469882222 | H132: 0.9469888528 | I132: 0.9470841335 | J132: 0.954851828 | K132: 0.9471676844
A133: 11.02 | B133: 0.947103026 | C133: 0.9471029848 | D133: 0.9471029264 | E133: 0.9471029204 | F133: 0.9471030654 | G133: 0.9471844182 | H133: 0.9471029523 | I133: 0.9471026174 | J133: 0.9468342697 | K133: 0.9471024047
A134: 11.03 | B134: 0.9472184108 | C134: 0.9472184625 | D134: 0.9472187025 | E134: 0.9472185626 | F134: 0.9472188016 | G134: 0.9472188539 | H134: 0.9472189049 | I134: 0.9472187621 | J134: 0.9466817935 | K134: 0.946680563
A135: 11.04 | B135: 0.9472109592 | C135: 0.9472110125 | D135: 0.9472110661 | E135: 0.9472113087 | F135: 0.947211174 | G135: 0.9472114137 | H135: 0.9472112808 | I135: 0.9472113332 | J135: 0.9472113881 | K135: 0.9472116285
A136: 11.05 | B136: 0.9468975181 | C136: 0.9468968266 | D136: 0.9468962252 | E136: 0.9468956264 | F136: 0.9468950661 | G136: 0.9468948334 | H136: 0.9469277241 | I136: 0.9468937836 | J136: 0.9468931115 | K136: 0.9468928414
A140: μ λ | B140: 70.14 | C140: 70.15 | D140: 70.16 | E140: 70.17 | F140: 70.18 | G140: 70.19 | H140: 70.2
A141: 10.99 | B141: 0.9470557798 | C141: 0.9470556932 | D141: 0.9470555947 | E141: 0.9470555229 | F141: 0.9470554317 | G141: 0.9470553488 | H141: 0.9470552455
A142: 11 | B142: 0.9553785274 | C142: 0.9553822817 | D142: 0.9553861877 | E142: 0.9553899287 | F142: 0.9553945368 | G142: 0.955399192 | H142: 0.9552560869
A143: 11.01 | B143: 0.9471676844 | C143: 0.9471706699 | D143: 0.9471937194 | E143: 0.9553887867 | F143: 0.9471929604 | G143: 0.9471681083 | H143: 0.9548573265
A147: μ λ | B147: 70.185 | C147: 70.186 | D147: 70.187 | E147: 70.188 | F147: 70.189 | G147: 70.19 | H147: 70.191 | I147: 70.192 | J147: 70.193 | K147: 70.194
A148: 10.995 | B148: 0.9470645146 | C148: 0.9470645137 | D148: 0.9470645223 | E148: 0.9470645319 | F148: 0.9470645417 | G148: 0.9470645537 | H148: 0.9470645583 | I148: 0.9470645606 | J148: 0.9470645813 | K148: 0.9470645857
A149: 10.996 | B149: 0.9470626042 | C149: 0.9470626027 | D149: 0.9470626144 | E149: 0.9470626195 | F149: 0.9470626263 | G149: 0.9470626336 | H149: 0.9470626492 | I149: 0.9470626526 | J149: 0.9470626581 | K149: 0.9470626674
A150: 10.997 | B150: 0.9470633551 | C150: 0.9470633551 | D150: 0.9470633404 | E150: 0.9470633322 | F150: 0.9470633176 | G150: 0.9470633125 | H150: 0.9470633077 | I150: 0.9470633098 | J150: 0.9470632981 | K150: 0.9470632875
A151: 10.998 | B151: 0.94706442 | C151: 0.947064419 | D151: 0.9470644149 | E151: 0.9470644092 | F151: 0.9470644026 | G151: 0.9470643945 | H151: 0.9470643858 | I151: 0.9470643819 | J151: 0.9470643776 | K151: 0.9470643698
A152: 10.999 | B152: 0.9553659921 | C152: 0.9553670691 | D152: 0.9553686433 | E152: 0.9553688132 | F152: 0.9553693678 | G152: 0.9553695369 | H152: 0.9553698265 | I152: 0.9553702843 | J152: 0.9553705846 | K152: 0.9553707376
A153: 11 | B153: 0.955396533 | C153: 0.9553972177 | D153: 0.9553979112 | E153: 0.9553980016 | F153: 0.9553987416 | G153: 0.955399192 | H153: 0.9553994367 | I153: 0.9553997594 | J153: 0.9554002704 | K153: 0.955400661
A154: 11.001 | B154: 0.9553598061 | C154: 0.9553598848 | D154: 0.9553602904 | E154: 0.9553604196 | F154: 0.9553607391 | G154: 0.9553608978 | H154: 0.9553612116 | I154: 0.9553615281 | J154: 0.9553617456 | K154: 0.955362128
A155: 11.002 | B155: 0.9553450774 | C155: 0.9553451439 | D155: 0.9553453217 | E155: 0.9553453414 | F155: 0.9553454732 | G155: 0.9553455131 | H155: 0.9553456541 | I155: 0.9553457219 | J155: 0.9553457996 | K155: 0.9553460006
A156: 11.003 | B156: 0.955338298 | C156: 0.9553383486 | D156: 0.9553384014 | E156: 0.9553384962 | F156: 0.955338551 | G156: 0.9553386846 | H156: 0.9553387023 | I156: 0.9553387773 | J156: 0.9553388375 | K156: 0.9553389091
A157: 11.004 | B157: 0.955336629 | C157: 0.9553366682 | D157: 0.9553370487 | E157: 0.9553377035 | F157: 0.9553383981 | G157: 0.9553390785 | H157: 0.9553388328 | I157: 0.9553382056 | J157: 0.9553377932 | K157: 0.9553401735
A158: 11.005 | B158: 0.9553360315 | C158: 0.9553360313 | D158: 0.9553361088 | E158: 0.9553361191 | F158: 0.9553361447 | G158: 0.9553361639 | H158: 0.9553361678 | I158: 0.9553362128 | J158: 0.9553362734 | K158: 0.9553363006
A162: μ λ | B162: 70.194 | C162: 70.195 | D162: 70.196 | E162: 70.197 | F162: 70.198 | G162: 70.199 | H162: 70.2
A163: 10.999 | B163: 0.9553707424 | C163: 0.955383704 | D163: 0.9553859754 | E163: 0.9553869235 | F163: 0.955389065 | G163: 0.9553907554 | H163: 0.9553918663
A164: 11 | B164: 0.955400661 | C164: 0.9554011186 | D164: 0.9552534036 | E164: 0.9552540556 | F164: 0.9552547611 | G164: 0.955255065 | H164: 0.9552560869
A165: 11.001 | B165: 0.955362128 | C165: 0.9553624979 | D165: 0.9553627307 | E165: 0.9553628156 | F165: 0.9553631877 | G165: 0.9553632659 | H165: 0.9553636648

Sheet United Kingdom
A1: Daten des UK Debt Management Office | P1: Bewertung der Anleihen | T1: Nelson-Siegel-Svensson Modellparameter
A2: ISIN | B2: Bezeichnung | C2: Laufzeit (Tage) | D2: Laufzeit (Monate) | E2: Laufzeit (Jahre) | F2: Kupon | G2: Kuponwert bei einer Zahlung | H2: Erste Kuponfälligkeit | I2: Tage bis zur ersten Kuponfälligkeit | J2: Zweite Kuponfälligkeit | K2: Tage bis zur zweiten Kuponfälligkeit | L2: Fälligkeit | M2: Tatsächlicher Preis | N2: Theoretischer Preis | P2: Ausgangsdatum | R2: 2023-12-08 | T2: β0 | U2: β1 | V2: β2 | W2: β3 | X2: λ | Y2: μ | Z2: β0+β1
A3: GB00BMGR2791 | B3: 0 1/8% Treasury Gilt 2024 | C3: =L3-$R$2 -> 54 | D3: =DATEDIF($R$2,L3,"M") -> 1 | E3: =DATEDIF($R$2,L3,"Y") -> 0 | F3: 0.00125 | G3: =(100*F3)/2 -> 0.0625 | H3: 2024-01-31 | I3: =H3-$R$2 -> 54 | J3: - | K3: - | L3: 2024-01-31 | M3: 99.29 | N3: =SUM(G3/((1+$R$6)^(I3/$R$3))) + (100/((1+$R$6)^(C3/$R$3))) -> 98.96262701 | P3: Tage im Jahr | R3: 360 | T3: 0.02329992192 | U3: -0.01184655532 | V3: 0.08580088765 | W3: 1.02179297 | X3: 12.533 | Y3: 0.06 | Z3: =T3+U3 -> 0.0114533666
A4: GB00BFWFPL34 | B4: 1% Treasury Gilt 2024 | C4: 136 | D4: 4 | E4: 0 | F4: 0.01 | G4: =(100*F4)/2 -> 0.5 | H4: 2024-04-22 | I4: 136 | J4: - | K4: - | L4: 2024-04-22 | M4: 98.5 | N4: =SUM(G4/((1+$R$6)^(I4/$R$3))) + (100/((1+$R$6)^(C4/$R$3))) -> 97.74101293 | P4: Laufzeit (in Jahren) | Q4: Laufzeit (in Tagen) | R4: Kassazinssätze
A5: GB00BHBFH458 | B5: 2¾% Treasury Gilt 2024 | C5: 274 | D5: 8 | E5: 0 | F5: 0.0275 | G5: 1.375 | H5: 2024-03-07 | I5: 90 | J5: =EDATE(H5,6) -> 2024-09-07 | K5: =J5-$R$2 -> 274 | L5: 2024-09-07 | M5: 98.4 | N5: =SUM(G5/((1+$R$6)^(I5/$R$3))) + SUM(G5/((1+$R$6)^(K5/$R$3))) + (100/((1+$R$6)^(C5/$R$3))) -> 97.19604376 | P5: 0 | Q5: =P5*$R$3 -> 0
A6: GB00BLPK7110 | B6: 0¼% Treasury Gilt 2025 | C6: 420 | D6: 13 | E6: 1 | F6: 0.0025 | G6: 0.125 | H6: 2024-01-31 | I6: 54 | J6: 2024-07-31 | K6: 236 | L6: 2025-01-31 | M6: 95.09 | N6: =SUM(G6/((1+$R$6:$R$7)^((I6+$R$3*$P$5:$P$6)/$R$3))) + SUM(G6/((1+$R$6)^(K6/$R$3))) + (100/((1+$R$7)^(C6/$R$3))) -> 94.91568335 | P6: 1 | Q6: =P6*$R$3 -> 360 | R6: =$T$3 + $U$3*((1-EXP(-P6/$X$3))/(P6/$X$3)) + $V$3*(((1-EXP(-P6/$X$3))/(P6/$X$3))-EXP(-P6/$X$3)) + $W$3*(((1-EXP(-P6/$Y$3))/(P6/$Y$3))-EXP(-P6/$Y$3)) -> 0.07646742715
A7: GB0030880693 | B7: 5% Treasury Stock 2025 | C7: 455 | D7: 14 | E7: 1 | F7: 0.05 | G7: 2.5 | H7: 2024-03-07 | I7: 90 | J7: 2024-09-07 | K7: 274 | L7: 2025-03-07 | M7: 100.34 | N7: =SUM(G7/((1+$R$6:$R$7)^((I7+$R$3*$P$5:$P$6)/$R$3))) + SUM(G7/((1+$R$6)^(K7/$R$3))) + (100/((1+$R$7)^(C7/$R$3))) -> 101.2869523 | P7: 2 | Q7: 720 | R7: =$T$3 + $U$3*((1-EXP(-P7/$X$3))/(P7/$X$3)) + $V$3*(((1-EXP(-P7/$X$3))/(P7/$X$3))-EXP(-P7/$X$3)) + $W$3*(((1-EXP(-P7/$Y$3))/(P7/$Y$3))-EXP(-P7/$Y$3)) -> 0.04916351864
A8: GB00BK5CVX03 | B8: 0 5/8% Treasury Gilt 2025 | C8: 547 | D8: 17 | E8: 1 | F8: 0.00625 | G8: 0.3125 | H8: 2024-06-07 | I8: 182 | J8: 2024-12-07 | K8: 365 | L8: 2025-06-07 | M8: 94.48 | N8: =SUM(G8/((1+$R$6:$R$7)^((I8+$R$3*$P$5:$P$6)/$R$3))) + SUM(G8/((1+$R$6)^(K8/$R$3))) + (100/((1+$R$7)^(C8/$R$3))) -> 93.84903521 | P8: 3 | Q8: 1080 | R8: 0.04196883829
A9: GB00BTHH2R79 | B9: 2% Treasury Gilt 2025 | C9: 639 | D9: 20 | E9: 1 | F9: 0.02 | G9: 1 | H9: 2024-03-07 | I9: 90 | J9: 2024-09-07 | K9: 274 | L9: 2025-09-07 | M9: 95.94 | N9: =SUM(G9/((1+$R$6:$R$7)^((I9+$R$3*$P$5:$P$6)/$R$3))) + SUM(G9/((1+$R$6:$R$7)^((K9+$R$3*$P$5:$P$6)/$R$3))) + (100/((1+$R$7)^(C9/$R$3))) -> 95.62190215 | P9: 4 | Q9: 1440 | R9: 0.03958427004
A10: GB00BPCJD880 | B10: 3½% Treasury Gilt 2025 | C10: 684 | D10: 22 | E10: 1 | F10: 0.035 | G10: 1.75 | H10: 2024-04-22 | I10: 136 | J10: 2024-10-22 | K10: 319 | L10: 2025-10-22 | M10: 98.15 | N10: =SUM(G10/((1+$R$6:$R$7)^((I10+$R$3*$P$5:$P$6)/$R$3))) + SUM(G10/((1+$R$6:$R$7)^((K10+$R$3*$P$5:$P$6)/$R$3))) + (100/((1+$R$7)^(C10/$R$3))) -> 97.86261134 | P10: 5 | Q10: 1800 | R10: 0.03896990243
A11: GB00BL68HJ26 | B11: 0 1/8% Treasury Gilt 2026 | C11: 784 | D11: 25 | E11: 2 | F11: 0.00125 | G11: 0.0625 | H11: 2024-01-30 | I11: 53 | J11: 2024-07-30 | K11: 235 | L11: 2026-01-30 | M11: 91.63 | N11: =SUM(G11/((1+$R$6:$R$8)^((I11+$R$3*$P$5:$P$7)/$R$3))) + SUM(G11/((1+$R$6:$R$7)^((K11+$R$3*$P$5:$P$6)/$R$3))) + (100/((1+$R$8)^(C11/$R$3))) -> 91.7313155 | P11: 6 | Q11: 2160 | R11: 0.03912734023
A12: GB00BYZW3G56 | B12: 1½% Treasury Gilt 2026 | C12: 957 | D12: 31 | E12: 2 | F12: 0.015 | G12: 0.75 | H12: 2024-01-22 | I12: 45 | J12: 2024-07-22 | K12: 227 | L12: 2026-07-22 | M12: 93.37 | N12: =SUM(G12/((1+$R$6:$R$8)^((I12+$R$3*$P$5:$P$7)/$R$3))) + SUM(G12/((1+$R$6:$R$8)^((K12+$R$3*$P$5:$P$7)/$R$3))) + (100/((1+$R$8)^(C12/$R$3))) -> 93.87066462 | P12: 7 | Q12: 2520 | R12: 0.03964016484
A13: GB00BNNGP668 | B13: 0 3/8% Treasury Gilt 2026 | C13: 1049 | D13: 34 | E13: 2 | F13: 0.00375 | G13: 0.1875 | H13: 2024-04-22 | I13: 136 | J13: 2024-10-22 | K13: 319 | L13: 2026-10-22 | M13: 89.8 | N13: =SUM(G13/((1+$R$6:$R$8)^((I13+$R$3*$P$5:$P$7)/$R$3))) + SUM(G13/((1+$R$6:$R$8)^((K13+$R$3*$P$5:$P$7)/$R$3))) + (100/((1+$R$8)^(C13/$R$3))) -> 89.75148371 | P13: 8 | Q13: 2880 | R13: 0.04030915995
A14: GB00BL6C7720 | B14: 4 1/8% Treasury Gilt 2027 | C14: 1148 | D14: 37 | E14: 3 | F14: 0.04125 | G14: 2.0625 | H14: 2024-01-29 | I14: 52 | J14: 2024-07-29 | K14: 234 | L14: 2027-01-29 | M14: 99.69 | N14: =SUM(G14/((1+$R$6:$R$9)^((I14+$R$3*$P$5:$P$8)/$R$3))) + SUM(G14/((1+$R$6:$R$8)^((K14+$R$3*$P$5:$P$7)/$R$3))) + (100/((1+$R$9)^(C14/$R$3))) -> 101.7840476 | P14: 9 | Q14: 3240 | R14: 0.04103080932
A15: GB00BDRHNP05 | B15: 1¼% Treasury Gilt 2027 | C15: 1322 | D15: 43 | E15: 3 | F15: 0.0125 | G15: 0.625 | H15: 2024-01-22 | I15: 45 | J15: 2024-07-22 | K15: 227 | L15: 2027-07-22 | M15: 90.78 | N15: =SUM(G15/((1+$R$6:$R$9)^((I15+$R$3*$P$5:$P$8)/$R$3))) + SUM(G15/((1+$R$6:$R$9)^((K15+$R$3*$P$5:$P$8)/$R$3))) + (100/((1+$R$9)^(C15/$R$3))) -> 91.32972764 | P15: 10 | Q15: 3600 | R15: 0.04174876868
A16: GB00B16NNR78 | B16: 4¼% Treasury Gilt 2027 | C16: 1460 | D16: 47 | E16: 3 | F16: 0.0425 | G16: 2.125 | H16: 2024-06-07 | I16: 182 | J16: 2024-12-07 | K16: 365 | L16: 2027-12-07 | M16: 100.83 | N16: =SUM(G16/((1+$R$6:$R$9)^((I16+$R$3*$P$5:$P$8)/$R$3))) + SUM(G16/((1+$R$6:$R$9)^((K16+$R$3*$P$5:$P$8)/$R$3))) + (100/((1+$R$9)^(C16/$R$3))) -> 100.8255778 | P16: 11 | Q16: 3960 | R16: 0.04243186767
A17: GB00BMBL1G81 | B17: 0 1/8% Treasury Gilt 2028 | C17: 1515 | D17: 49 | E17: 4 | F17: 0.00125 | G17: 0.0625 | H17: 2024-01-31 | I17: 54 | J17: 2024-07-31 | K17: 236 | L17: 2028-01-31 | M17: 85.46 | N17: =SUM(G17/((1+$R$6:$R$10)^((I17+$R$3*$P$5:$P$9)/$R$3))) + SUM(G17/((1+$R$6:$R$9)^((K17+$R$3*$P$5:$P$8)/$R$3))) + (100/((1+$R$10)^(C17/$R$3))) -> 85.653477 | P17: 12 | Q17: 4320 | R17: 0.0430631607
A18: GB00BMF9LG83 | B18: 4½% Treasury Gilt 2028 | C18: 1643 | D18: 53 | E18: 4 | F18: 0.045 | G18: 2.25 | H18: 2024-06-07 | I18: 182 | J18: 2024-12-07 | K18: 365 | L18: 2028-06-07 | M18: 101.74 | N18: =SUM(G18/((1+$R$6:$R$10)^((I18+$R$3*$P$5:$P$9)/$R$3))) + SUM(G18/((1+$R$6:$R$9)^((K18+$R$3*$P$5:$P$8)/$R$3))) + (100/((1+$R$10)^(C18/$R$3))) -> 102.1819162 | P18: 13 | Q18: 4680 | R18: 0.04363407312
A19: GB00BFX0ZL78 | B19: 1 5/8% Treasury Gilt 2028 | C19: 1780 | D19: 58 | E19: 4 | F19: 0.01625 | G19: 0.8125 | H19: 2024-04-22 | I19: 136 | J19: 2024-10-22 | K19: 319 | L19: 2028-10-22 | M19: 89.93 | N19: =SUM(G19/((1+$R$6:$R$10)^((I19+$R$3*$P$5:$P$9)/$R$3))) + SUM(G19/((1+$R$6:$R$10)^((K19+$R$3*$P$5:$P$9)/$R$3))) + (100/((1+$R$10)^(C19/$R$3))) -> 90.06177455 | P19: 14 | Q19: 5040 | R19: 0.04414109136
A20: GB0002404191 | B20: 6% Treasury Stock 2028 | C20: 1826 | D20: 59 | E20: 4 | F20: 0.06 | G20: 3 | H20: 2024-06-07 | I20: 182 | J20: 2024-12-07 | K20: 365 | L20: 2028-12-07 | M20: 109.06 | N20: =SUM(G20/((1+$R$6:$R$10)^((I20+$R$3*$P$5:$P$9)/$R$3))) + SUM(G20/((1+$R$6:$R$10)^((K20+$R$3*$P$5:$P$9)/$R$3))) + (100/((1+$R$10)^(C20/$R$3))) -> 109.1062582 | P20: 15 | Q20: 5400 | R20: 0.04458380668
A21: GB00BLPK7227 | B21: 0½% Treasury Gilt 2029 | C21: 1881 | D21: 61 | E21: 5 | F21: 0.005 | G21: 0.25 | H21: 2024-01-31 | I21: 54 | J21: 2024-07-31 | K21: 236 | L21: 2029-01-31 | M21: 84.03 | N21: =SUM(G21/((1+$R$6:$R$11)^((I21+$R$3*$P$5:$P$10)/$R$3))) + SUM(G21/((1+$R$6:$R$10)^((K21+$R$3*$P$5:$P$9)/$R$3))) + (100/((1+$R$11)^(C21/$R$3))) -> 84.30051319 | P21: 16 | Q21: 5760 | R21: 0.04496371793
A22: GB00BJMHB534 | B22: 0 7/8% Treasury Gilt 2029 | C22: 2145 | D22: 70 | E22: 5 | F22: 0.00875 | G22: 0.4375 | H22: 2024-04-22 | I22: 136 | J22: 2024-10-22 | K22: 319 | L22: 2029-10-22 | M22: 84.35 | N22: =SUM(G22/((1+$R$6:$R$11)^((I22+$R$3*$P$5:$P$10)/$R$3))) + SUM(G22/((1+$R$6:$R$11)^((K22+$R$3*$P$5:$P$10)/$R$3))) + (100/((1+$R$11)^(C22/$R$3))) -> 84.1853698 | P22: 17 | Q22: 6120 | R22: 0.04528347824
A23: GB00BL68HH02 | B23: 0 3/8% Treasury Gilt 2030 | C23: 2510 | D23: 82 | E23: 6 | F23: 0.00375 | G23: 0.1875 | H23: 2024-04-22 | I23: 136 | J23: 2024-10-22 | K23: 319 | L23: 2030-10-22 | M23: 78.97 | N23: =SUM(G23/((1+$R$6:$R$12)^((I23+$R$3*$P$5:$P$11)/$R$3))) + SUM(G23/((1+$R$6:$R$12)^((K23+$R$3*$P$5:$P$11)/$R$3))) + (100/((1+$R$12)^(C23/$R$3))) -> 78.53149223 | P23: 18 | Q23: 6480 | R23: 0.04554641135
A24: GB00B24FF097 | B24: 4¾% Treasury Gilt 2030 | C24: 2556 | D24: 83 | E24: 6 | F24: 0.0475 | G24: 2.375 | H24: 2024-06-07 | I24: 182 | J24: 2024-12-07 | K24: 365 | L24: 2030-12-07 | M24: 105.11 | N24: =SUM(G24/((1+$R$6:$R$12)^((I24+$R$3*$P$5:$P$11)/$R$3))) + SUM(G24/((1+$R$6:$R$12)^((K24+$R$3*$P$5:$P$11)/$R$3))) + (100/((1+$R$12)^(C24/$R$3))) -> 104.5047662 | P24: 19 | Q24: 6840 | R24: 0.04575619632
A25: GB00BMGR2809 | B25: 0¼% Treasury Gilt 2031 | C25: 2792 | D25: 91 | E25: 7 | F25: 0.0025 | G25: 0.125 | H25: 2024-01-31 | I25: 54 | J25: 2024-07-31 | K25: 236 | L25: 2031-07-31 | M25: 75.94 | N25: =SUM(G25/((1+$R$6:$R$13)^((I25+$R$3*$P$5:$P$12)/$R$3))) + SUM(G25/((1+$R$6:$R$13)^((K25+$R$3*$P$5:$P$12)/$R$3))) + (100/((1+$R$13)^(C25/$R$3))) -> 75.32109892 | P25: 20 | Q25: 7200 | R25: 0.04591666049
A26: GB00BM8Z2T38 | B26: 1% Treasury Gilt 2032 | C26: 2976 | D26: 97 | E26: 8 | F26: 0.01 | G26: 0.5 | H26: 2024-01-31 | I26: 54 | J26: 2024-07-31 | K26: 236 | L26: 2032-01-31 | M26: 79.55 | N26: =SUM(G26/((1+$R$6:$R$14)^((I26+$R$3*$P$5:$P$13)/$R$3))) + SUM(G26/((1+$R$6:$R$13)^((K26+$R$3*$P$5:$P$12)/$R$3))) + (100/((1+$R$14)^(C26/$R$3))) -> 78.9514572 | P26: 21 | Q26: 7560 | R26: 0.04603164316
A27: GB0004893086 | B27: 4¼% Treasury Stock 2032 | C27: 3104 | D27: 101 | E27: 8 | F27: 0.0425 | G27: 2.125 | H27: 2024-06-07 | I27: 182 | J27: 2024-12-07 | K27: 365 | L27: 2032-06-07 | M27: 102.25 | N27: =SUM(G27/((1+$R$6:$R$14)^((I27+$R$3*$P$5:$P$13)/$R$3))) + SUM(G27/((1+$R$6:$R$13)^((K27+$R$3*$P$5:$P$12)/$R$3))) + (100/((1+$R$14)^(C27/$R$3))) -> 100.9493193 | P27: 22 | Q27: 7920 | R27: 0.04610490658
A28: GB00BMV7TC88 | B28: 3¼% Treasury Gilt 2033 | C28: 3342 | D28: 109 | E28: 9 | F28: 0.0325 | G28: 1.625 | H28: 2024-01-31 | I28: 54 | J28: 2024-07-31 | K28: 236 | L28: 2033-01-31 | M28: 94.24 | N28: =SUM(G28/((1+$R$6:$R$15)^((I28+$R$3*$P$5:$P$14)/$R$3))) + SUM(G28/((1+$R$6:$R$14)^((K28+$R$3*$P$5:$P$13)/$R$3))) + (100/((1+$R$15)^(C28/$R$3))) -> 94.17738772 | P28: 23 | Q28: 8280 | R28: 0.0461400788
A29: GB00BM8Z2S21 | B29: 0 7/8% Green Gilt 2033 | C29: 3523 | D29: 115 | E29: 9 | F29: 0.00875 | G29: 0.4375 | H29: 2024-01-31 | I29: 54 | J29: 2024-07-31 | K29: 236 | L29: 2033-07-31 | M29: 74.92 | N29: =SUM(G29/((1+$R$6:$R$15)^((I29+$R$3*$P$5:$P$14)/$R$3))) + SUM(G29/((1+$R$6:$R$15)^((K29+$R$3*$P$5:$P$14)/$R$3))) + (100/((1+$R$15)^(C29/$R$3))) -> 74.24754259 | P29: 24 | Q29: 8640 | R29: 0.04614061831
A30: GB00BPJJKN53 | B30: 4 5/8% Treasury Gilt 2034 | C30: 3707 | D30: 121 | E30: 10 | F30: 0.04625 | G30: 2.3125 | H30: 2024-01-31 | I30: 54 | J30: 2024-07-31 | K30: 236 | L30: 2034-01-31 | M30: 104.33 | N30: =SUM(G30/((1+$R$6:$R$16)^((I30+$R$3*$P$5:$P$15)/$R$3))) + SUM(G30/((1+$R$6:$R$15)^((K30+$R$3*$P$5:$P$14)/$R$3))) + (100/((1+$R$16)^(C30/$R$3))) -> 104.9347325 | P30: 25 | Q30: 9000 | R30: 0.04610979375
A31: GB00B52WS153 | B31: 4½% Treasury Gilt 2034 | C31: 3926 | D31: 128 | E31: 10 | F31: 0.045 | G31: 2.25 | H31: 2024-03-07 | I31: 90 | J31: 2024-09-07 | K31: 274 | L31: 2034-09-07 | M31: 103.33 | N31: =SUM(G31/((1+$R$6:$R$16)^((I31+$R$3*$P$5:$P$15)/$R$3))) + SUM(G31/((1+$R$6:$R$16)^((K31+$R$3*$P$5:$P$15)/$R$3))) + (100/((1+$R$16)^(C31/$R$3))) -> 103.4962581 | P31: 26 | Q31: 9360 | R31: 0.04605067382
A32: GB00BMGR2916 | B32: 0 5/8% Treasury Gilt 2035 | C32: 4253 | D32: 139 | E32: 11 | F32: 0.00625 | G32: 0.3125 | H32: 2024-01-31 | I32: 54 | J32: 2024-07-31 | K32: 236 | L32: 2035-07-31 | M32: 67.54 | N32: =SUM(G32/((1+$R$6:$R$17)^((I32+$R$3*$P$5:$P$16)/$R$3))) + SUM(G32/((1+$R$6:$R$17)^((K32+$R$3*$P$5:$P$16)/$R$3))) + (100/((1+$R$17)^(C32/$R$3))) -> 66.72730059 | P32: 27 | Q32: 9720 | R32: 0.04596612445
A33: GB0032452392 | B33: 4¼% Treasury Stock 2036 | C33: 4473 | D33: 146 | E33: 12 | F33: 0.0425 | G33: 2.125 | H33: 2024-03-07 | I33: 90 | J33: 2024-09-07 | K33: 274 | L33: 2036-03-07 | M33: 100.59 | N33: =SUM(G33/((1+$R$6:$R$18)^((I33+$R$3*$P$5:$P$17)/$R$3))) + SUM(G33/((1+$R$6:$R$17)^((K33+$R$3*$P$5:$P$16)/$R$3))) + (100/((1+$R$18)^(C33/$R$3))) -> 100.4158265 | P33: 28 | Q33: 10080 | R33: 0.04585881073
A34: GB00BZB26Y51 | B34: 1¾% Treasury Gilt 2037 | C34: 5022 | D34: 164 | E34: 13 | F34: 0.0175 | G34: 0.875 | H34: 2024-03-07 | I34: 90 | J34: 2024-09-07 | K34: 274 | L34: 2037-09-07 | M34: 73.75 | N34: =SUM(G34/((1+$R$6:$R$19)^((I34+$R$3*$P$5:$P$18)/$R$3))) + SUM(G34/((1+$R$6:$R$19)^((K34+$R$3*$P$5:$P$18)/$R$3))) + (100/((1+$R$19)^(C34/$R$3))) -> 73.35148463 | P34: 29 | Q34: 10440 | R34: 0.04573120218
A35: GB00BQC4R999 | B35: 3¾% Treasury Gilt 2038 | C35: =L35-$R$2 -> 5166 | D35: =DATEDIF($R$2,L35,"M") -> 169 | E35: =DATEDIF($R$2,L35,"Y") -> 14 | F35: 0.0375 | G35: 1.875 | H35: 2024-01-29 | I35: =H35-$R$2 -> 52 | J35: 2024-07-29 | K35: 234 | L35: 2038-01-29 | M35: 93.76 | N35: =SUM(G35/((1+$R$6:$R$20)^((I35+$R$3*$P$5:$P$19)/$R$3))) + SUM(G35/((1+$R$6:$R$19)^((K35+$R$3*$P$5:$P$18)/$R$3))) + (100/((1+$R$20)^(C35/$R$3))) -> 94.55926473 | P35: 30 | Q35: 10800 | R35: 0.04558558017
A36: GB00B00NY175 | B36: 4¾% Treasury Stock 2038 | C36: 5478 | D36: 179 | E36: 14 | F36: 0.0475 | G36: 2.375 | H36: 2024-06-07 | I36: 182 | J36: 2024-12-07 | K36: 365 | L36: 2038-12-07 | M36: 104.45 | N36: =SUM(G36/((1+$R$6:$R$20)^((I36+$R$3*$P$5:$P$19)/$R$3))) + SUM(G36/((1+$R$6:$R$20)^((K36+$R$3*$P$5:$P$19)/$R$3))) + (100/((1+$R$20)^(C36/$R$3))) -> 103.9420193 | P36: 31 | Q36: 11160 | R36: 0.04542404671
A37: GB00BLPK7334 | B37: 1 1/8% Treasury Gilt 2039 | C37: 5533 | D37: 181 | E37: 15 | F37: 0.01125 | G37: 0.5625 | H37: 2024-01-31 | I37: 54 | J37: 2024-07-31 | K37: =J37-$R$2 -> 236 | L37: 2039-01-31 | M37: 64.37 | N37: =SUM(G37/((1+$R$6:$R$21)^((I37+$R$3*$P$5:$P$20)/$R$3))) + SUM(G37/((1+$R$6:$R$20)^((K37+$R$3*$P$5:$P$19)/$R$3))) + (100/((1+$R$21)^(C37/$R$3))) -> 63.77320151 | P37: 32 | Q37: 11520 | R37: 0.04524853394
A38: GB00B3KJDS62 | B38: 4¼% Treasury Gilt 2039 | C38: 5752 | D38: 188 | E38: 15 | F38: 0.0425 | G38: 2.125 | H38: 2024-03-07 | I38: 90 | J38: 2024-09-07 | K38: 274 | L38: 2039-09-07 | M38: 98.55 | N38: =SUM(G38/((1+$R$6:$R$21)^((I38+$R$3*$P$5:$P$20)/$R$3))) + SUM(G38/((1+$R$6:$R$21)^((K38+$R$3*$P$5:$P$20)/$R$3))) + (100/((1+$R$21)^(C38/$R$3))) -> 99.12726936 | P38: 33 | Q38: 11880 | R38: 0.04506081413
A39: GB00B6460505 | B39: 4¼% Treasury Gilt 2040 | C39: 6209 | D39: 203 | E39: 16 | F39: 0.0425 | G39: 2.125 | H39: 2024-06-07 | I39: 182 | J39: 2024-12-07 | K39: 365 | L39: 2040-12-07 | M39: 98.09 | N39: =SUM(G39/((1+$R$6:$R$22)^((I39+$R$3*$P$5:$P$21)/$R$3))) + SUM(G39/((1+$R$6:$R$22)^((K39+$R$3*$P$5:$P$21)/$R$3))) + (100/((1+$R$22)^(C39/$R$3))) -> 97.66377312 | P39: 34 | Q39: 12240 | R39: 0.04486250967
A40: GB00BJQWYH73 | B40: 1¼ % Treasury Gilt 2041 | C40: 6528 | D40: 214 | E40: 17 | F40: 0.0125 | G40: 0.625 | H40: 2024-04-22 | I40: 136 | J40: 2024-10-22 | K40: 319 | L40: 2041-10-22 | M40: 61.21 | N40: =SUM(G40/((1+$R$6:$R$23)^((I40+$R$3*$P$5:$P$22)/$R$3))) + SUM(G40/((1+$R$6:$R$23)^((K40+$R$3*$P$5:$P$22)/$R$3))) + (100/((1+$R$23)^(C40/$R$3))) -> 60.26756422 | P40: 35 | Q40: 12600 | R40: 0.04465510294
A41: GB00B1VWPJ53 | B41: 4½% Treasury Gilt 2042 | C41: 6939 | D41: 227 | E41: 18 | F41: 0.045 | G41: 2.25 | H41: 2024-06-07 | I41: 182 | J41: 2024-12-07 | K41: 365 | L41: 2042-12-07 | M41: 100.54 | N41: =SUM(G41/((1+$R$6:$R$24)^((I41+$R$3*$P$5:$P$23)/$R$3))) + SUM(G41/((1+$R$6:$R$24)^((K41+$R$3*$P$5:$P$23)/$R$3))) + (100/((1+$R$24)^(C41/$R$3))) -> 100.2818352 | P41: 36 | Q41: 12960 | R41: 0.04443994599
A42: GB00BPJJKP77 | B42: 4¾% Treasury Gilt 2043 | C42: 7258 | D42: 238 | E42: 19 | F42: 0.0475 | G42: 2.375 | H42: 2024-04-22 | I42: 136 | J42: 2024-10-22 | K42: 319 | L42: 2043-10-22 | M42: 103.39 | N42: =SUM(G42/((1+$R$6:$R$25)^((I42+$R$3*$P$5:$P$24)/$R$3))) + SUM(G42/((1+$R$6:$R$25)^((K42+$R$3*$P$5:$P$24)/$R$3))) + (100/((1+$R$25)^(C42/$R$3))) -> 104.0547783 | P42: 37 | Q42: 13320 | R42: 0.04421826981
A43: GB00B84Z9V04 | B43: 3¼% Treasury Gilt 2044 | C43: 7350 | D43: 241 | E43: 20 | F43: 0.0325 | G43: 1.625 | H43: 2024-01-22 | I43: 45 | J43: 2024-07-22 | K43: 227 | L43: 2044-01-22 | M43: 83.7 | N43: =SUM(G43/((1+$R$6:$R$26)^((I43+$R$3*$P$5:$P$25)/$R$3))) + SUM(G43/((1+$R$6:$R$25)^((K43+$R$3*$P$5:$P$24)/$R$3))) + (100/((1+$R$26)^(C43/$R$3))) -> 84.56478856 | P43: 38 | Q43: 13680 | R43: 0.0439911932
A44: GB00BN65R313 | B44: 3½% Treasury Gilt 2045 | C44: 7716 | D44: 253 | E44: 21 | F44: 0.035 | G44: 1.75 | H44: 2024-01-22 | I44: 45 | J44: 2024-07-22 | K44: 227 | L44: 2045-01-22 | M44: 86.47 | N44: =SUM(G44/((1+$R$6:$R$27)^((I44+$R$3*$P$5:$P$26)/$R$3))) + SUM(G44/((1+$R$6:$R$26)^((K44+$R$3*$P$5:$P$25)/$R$3))) + (100/((1+$R$27)^(C44/$R$3))) -> 87.52593999 | P44: 39 | Q44: 14040 | R44: 0.04375973119
A45: GB00BNNGP775 | B45: 0 7/8% Treasury Gilt 2046 | C45: 8090 | D45: 265 | E45: 22 | F45: 0.00875 | G45: 0.4375 | H45: 2024-01-31 | I45: 54 | J45: 2024-07-31 | K45: 236 | L45: 2046-01-31 | M45: 49.84 | N45: =SUM(G45/((1+$R$6:$R$28)^((I45+$R$3*$P$5:$P$27)/$R$3))) + SUM(G45/((1+$R$6:$R$27)^((K45+$R$3*$P$5:$P$26)/$R$3))) + (100/((1+$R$28)^(C45/$R$3))) -> 48.96828748 | P45: 40 | Q45: 14400 | R45: 0.043524803
A46: GB00B128DP45 | B46: 4¼% Treasury Gilt 2046 | C46: 8400 | D46: 275 | E46: 22 | F46: 0.0425 | G46: 2.125 | H46: 2024-06-07 | I46: 182 | J46: 2024-12-07 | K46: 365 | L46: 2046-12-07 | M46: 96.34 | N46: =SUM(G46/((1+$R$6:$R$28)^((I46+$R$3*$P$5:$P$27)/$R$3))) + SUM(G46/((1+$R$6:$R$28)^((K46+$R$3*$P$5:$P$27)/$R$3))) + (100/((1+$R$28)^(C46/$R$3))) -> 96.28289237 | P46: 41 | Q46: 14760 | R46: 0.04328723952
A47: GB00BDCHBW80 | B47: 1½% Treasury Gilt 2047 | C47: 8627 | D47: 283 | E47: 23 | F47: 0.015 | G47: 0.75 | H47: 2024-01-22 | I47: 45 | J47: 2024-07-22 | K47: 227 | L47: 2047-07-22 | M47: 56.8 | N47: =SUM(G47/((1+$R$6:$R$29)^((I47+$R$3*$P$5:$P$28)/$R$3))) + SUM(G47/((1+$R$6:$R$29)^((K47+$R$3*$P$5:$P$28)/$R$3))) + (100/((1+$R$29)^(C47/$R$3))) -> 56.48006827 | P47: 42 | Q47: 15120 | R47: 0.04304779032
A48: GB00BFWFPP71 | B48: 1¾% Treasury Gilt 2049 | C48: 9177 | D48: 301 | E48: 25 | F48: 0.0175 | G48: 0.875 | H48: 2024-01-22 | I48: 45 | J48: 2024-07-22 | K48: 227 | L48: 2049-01-22 | M48: 59.16 | N48: =SUM(G48/((1+$R$6:$R$31)^((I48+$R$3*$P$5:$P$30)/$R$3))) + SUM(G48/((1+$R$6:$R$30)^((K48+$R$3*$P$5:$P$29)/$R$3))) + (100/((1+$R$31)^(C48/$R$3))) -> 58.91458771 | P48: 43 | Q48: 15480 | R48: 0.04280713016
A49: GB00B39R3707 | B49: 4¼% Treasury Gilt 2049 | C49: 9496 | D49: 311 | E49: 25 | F49: 0.0425 | G49: 2.125 | H49: 2024-06-07 | I49: 182 | J49: 2024-12-07 | K49: 365 | L49: 2049-12-07 | M49: 96.1 | N49: =SUM(G49/((1+$R$6:$R$31)^((I49+$R$3*$P$5:$P$30)/$R$3))) + SUM(G49/((1+$R$6:$R$31)^((K49+$R$3*$P$5:$P$30)/$R$3))) + (100/((1+$R$31)^(C49/$R$3))) -> 96.05281543 | P49: 44 | Q49: 15840 | R49: 0.04256586517
A50: GB00BMBL1F74 | B50: 0 5/8% Treasury Gilt 2050 | C50: 9815 | D50: 322 | E50: 26 | F50: 0.00625 | G50: 0.3125 | H50: 2024-04-22 | I50: 136 | J50: 2024-10-22 | K50: 319 | L50: 2050-10-22 | M50: 40.64 | N50: =SUM(G50/((1+$R$6:$R$32)^((I50+$R$3*$P$5:$P$31)/$R$3))) + SUM(G50/((1+$R$6:$R$32)^((K50+$R$3*$P$5:$P$31)/$R$3))) + (100/((1+$R$32)^(C50/$R$3))) -> 39.25209231 | P50: 45 | Q50: 16200 | R50: 0.04232453845
A51: GB00BLH38158 | B51: 1¼% Treasury Gilt 2051 | C51: 10097 | D51: 331 | E51: 27 | F51: 0.0125 | G51: 0.625 | H51: 2024-01-31 | I51: 54 | J51: 2024-07-31 | K51: 236 | L51: 2051-07-31 | M51: 49.4 | N51: =SUM(G51/((1+$R$6:$R$33)^((I51+$R$3*$P$5:$P$32)/$R$3))) + SUM(G51/((1+$R$6:$R$33)^((K51+$R$3*$P$5:$P$32)/$R$3))) + (100/((1+$R$33)^(C51/$R$3))) -> 48.76915997 | P51: 46 | Q51: 16560 | R51: 0.04208363538
A52: GB00B6RNH572 | B52: 3¾% Treasury Gilt 2052 | C52: 10454 | D52: 343 | E52: 28 | F52: 0.0375 | G52: 1.875 | H52: 2024-01-22 | I52: 45 | J52: 2024-07-22 | K52: 227 | L52: 2052-07-22 | M52: 88.29 | N52: =SUM(G52/((1+$R$6:$R$34)^((I52+$R$3*$P$5:$P$33)/$R$3))) + SUM(G52/((1+$R$6:$R$34)^((K52+$R$3*$P$5:$P$33)/$R$3))) + (100/((1+$R$34)^(C52/$R$3))) -> 89.42160273 | P52: 47 | Q52: 16920 | R52: 0.04184358851
A53: GB00BM8Z2V59 | B53: 1½% Green Gilt 2053 | C53: 10828 | D53: 355 | E53: 29 | F53: 0.015 | G53: 0.75 | H53: 2024-01-31 | I53: 54 | J53: 2024-07-31 | K53: 236 | L53: 2053-07-31 | M53: 51.69 | N53: =SUM(G53/((1+$R$6:$R$35)^((I53+$R$3*$P$5:$P$34)/$R$3))) + SUM(G53/((1+$R$6:$R$35)^((K53+$R$3*$P$5:$P$34)/$R$3))) + (100/((1+$R$35)^(C53/$R$3))) -> 51.3923181 | P53: 48 | Q53: 17280 | R53: 0.04160478207
A54: GB00BPCJD997 | B54: 3¾% Treasury Gilt 2053 | C54: 10911 | D54: 358 | E54: 29 | F54: 0.0375 | G54: 1.875 | H54: 2024-04-22 | I54: 136 | J54: 2024-10-22 | K54: 319 | L54: 2053-10-22 | M54: 87.8 | N54: =SUM(G54/((1+$R$6:$R$35)^((I54+$R$3*$P$5:$P$34)/$R$3))) + SUM(G54/((1+$R$6:$R$35)^((K54+$R$3*$P$5:$P$34)/$R$3))) + (100/((1+$R$35)^(C54/$R$3))) -> 88.33108699 | P54: 49 | Q54: 17640 | R54: 0.04136755614
A55: GB00BJLR0J16 | B55: 1 5/8% Treasury Gilt 2054 | C55: 11276 | D55: 370 | E55: 30 | F55: 0.01625 | G55: 0.8125 | H55: 2024-04-22 | I55: 136 | J55: 2024-10-22 | K55: 319 | L55: 2054-10-22 | M55: 52.94 | N55: =SUM(G55/((1+$R$6:$R$36)^((I55+$R$3*$P$5:$P$35)/$R$3))) + SUM(G55/((1+$R$6:$R$36)^((K55+$R$3*$P$5:$P$35)/$R$3))) + (100/((1+$R$36)^(C55/$R$3))) -> 52.3440499 | P55: 50 | Q55: 18000 | R55: 0.04113221053
A56: GB00B06YGN05 | B56: 4¼% Treasury Gilt 2055 | C56: 11687 | D56: 383 | E56: 31 | F56: 0.0425 | G56: 2.125 | H56: 2024-06-07 | I56: 182 | J56: 2024-12-07 | K56: 365 | L56: 2055-12-07 | M56: 96.29 | N56: =SUM(G56/((1+$R$6:$R$37)^((I56+$R$3*$P$5:$P$36)/$R$3))) + SUM(G56/((1+$R$6:$R$37)^((K56+$R$3*$P$5:$P$36)/$R$3))) + (100/((1+$R$37)^(C56/$R$3))) -> 96.25822147 | P56: Mispricing | R56: =SUMSQ(M3:M64-N3:N64) -> 35.7511566
A57: GB00BD0XH204 | B57: 1¾% Treasury Gilt 2057 | C57: 12280 | D57: 403 | E57: 33 | F57: 0.0175 | G57: 0.875 | H57: 2024-01-22 | I57: 45 | J57: 2024-07-22 | K57: 227 | L57: 2057-07-22 | M57: 53.88 | N57: =SUM(G57/((1+$R$6:$R$39)^((I57+$R$3*$P$5:$P$38)/$R$3))) + SUM(G57/((1+$R$6:$R$39)^((K57+$R$3*$P$5:$P$38)/$R$3))) + (100/((1+$R$39)^(C57/$R$3))) -> 53.56100896
A58: GB00B54QLM75 | B58: 4% Treasury Gilt 2060 | C58: 13194 | D58: 433 | E58: 36 | F58: 0.04 | G58: 2 | H58: 2024-01-22 | I58: 45 | J58: 2024-07-22 | K58: 227 | L58: 2060-01-22 | M58: 92.65 | N58: =SUM(G58/((1+$R$6:$R$42)^((I58+$R$3*$P$5:$P$41)/$R$3))) + SUM(G58/((1+$R$6:$R$41)^((K58+$R$3*$P$5:$P$40)/$R$3))) + (100/((1+$R$42)^(C58/$R$3))) -> 93.91708537 | P58: Anpassung
A59: GB00BMBL1D50 | B59: 0½% Treasury Gilt 2061 | C59: 13833 | D59: 454 | E59: 37 | F59: 0.005 | G59: 0.25 | H59: 2024-04-22 | I59: 136 | J59: 2024-10-22 | K59: 319 | L59: 2061-10-22 | M59: 30.35 | N59: =SUM(G59/((1+$R$6:$R$43)^((I59+$R$3*$P$5:$P$42)/$R$3))) + SUM(G59/((1+$R$6:$R$43)^((K59+$R$3*$P$5:$P$42)/$R$3))) + (100/((1+$R$43)^(C59/$R$3))) -> 28.35068718 | P59: Mittelwert (Tatsächliche Preise) | Q59: =AVERAGE(M3:M64) -> 83.60532258
A60: GB00BMF9LF76 | B60: 4% Treasury Gilt 2063 | C60: 14563 | D60: 478 | E60: 39 | F60: 0.04 | G60: 2 | H60: 2024-04-22 | I60: 136 | J60: 2024-10-22 | K60: 319 | L60: 2063-10-22 | M60: 92.41 | N60: =SUM(G60/((1+$R$6:$R$45)^((I60+$R$3*$P$5:$P$44)/$R$3))) + SUM(G60/((1+$R$6:$R$45)^((K60+$R$3*$P$5:$P$44)/$R$3))) + (100/((1+$R$45)^(C60/$R$3))) -> 93.16388401 | P60: Totale Quadratsumme (SQT) | Q60: =SUM((M3:M64-$Q$59)^2) -> 24121.16254
A61: GB00BYYMZX75 | B61: 2½% Treasury Gilt 2065 | C61: 15202 | D61: 499 | E61: 41 | F61: 0.025 | G61: 1.25 | H61: 2024-01-22 | I61: 45 | J61: 2024-07-22 | K61: 227 | L61: 2065-07-22 | M61: 64.69 | N61: =SUM(G61/((1+$R$6:$R$47)^((I61+$R$3*$P$5:$P$46)/$R$3))) + SUM(G61/((1+$R$6:$R$47)^((K61+$R$3*$P$5:$P$46)/$R$3))) + (100/((1+$R$47)^(C61/$R$3))) -> 65.36212553 | P61: Residuenquadratsumme (SQR) | Q61: =SUM((M3:M64-N3:N64)^2) -> 35.7511566
A62: GB00BBJNQY21 | B62: 3½% Treasury Gilt 2068 | C62: 16298 | D62: 535 | E62: 44 | F62: 0.035 | G62: 1.75 | H62: 2024-01-22 | I62: 45 | J62: 2024-07-22 | K62: 227 | L62: 2068-07-22 | M62: 83.51 | N62: =SUM(G62/((1+$R$6:$R$50)^((I62+$R$3*$P$5:$P$49)/$R$3))) + SUM(G62/((1+$R$6:$R$50)^((K62+$R$3*$P$5:$P$49)/$R$3))) + (100/((1+$R$50)^(C62/$R$3))) -> 84.9243795 | P62: R squared | Q62: =1-(Q61/Q60) -> 0.998517851
A63: GB00BFMCN652 | B63: 1 5/8% Treasury Gilt 2071 | C63: 17485 | D63: 574 | E63: 47 | F63: 0.01625 | G63: 0.8125 | H63: 2024-04-22 | I63: 136 | J63: 2024-10-22 | K63: 319 | L63: 2071-10-22 | M63: 47.37 | N63: =SUM(G63/((1+$R$6:$R$53)^((I63+$R$3*$P$5:$P$52)/$R$3))) + SUM(G63/((1+$R$6:$R$53)^((K63+$R$3*$P$5:$P$52)/$R$3))) + (100/((1+$R$53)^(C63/$R$3))) -> 46.49180593
A64: GB00BLBDX619 | B64: 1 1/8% Treasury Gilt 2073 | C64: 18216 | D64: 598 | E64: 49 | F64: 0.01125 | G64: 0.5625 | H64: 2024-04-22 | I64: 136 | J64: 2024-10-22 | K64: 319 | L64: 2073-10-22 | M64: 37.47 | N64: =SUM(G64/((1+$R$6:$R$55)^((I64+$R$3*$P$5:$P$54)/$R$3))) + SUM(G64/((1+$R$6:$R$55)^((K64+$R$3*$P$5:$P$54)/$R$3))) + (100/((1+$R$55)^(C64/$R$3))) -> 35.94285501
A66: Rastersuche
A69: μ λ | B69: 0.1 | C69: 1 | D69: 10 | E69: 25 | F69: 50 | G69: 75 | H69: 100
A70: 0.1 | B70: 0.9947067357 | C70: 0.9947903222 | D70: 0.9955666716 | E70: 0.9953956858 | F70: 0.9948566182 | G70: 0.9947457262 | H70: 0.9947172384
A71: 1 | B71: 0.994286218 | C71: 0.9942846658 | D71: 0.9949152727 | E71: 0.9949366092 | F71: 0.994291834 | G71: 0.9942640207 | H71: 0.9942622159
A72: 10 | B72: 0.9982705081 | C72: 0.9979388606 | D72: 0.9963652184 | E72: 0.9969983575 | F72: 0.9963174504 | G72: 0.9979926703 | H72: 0.9979514188
A73: 25 | B73: 0.9850737075 | C73: 0.9889446605 | D73: 0.9962857053 | E73: 0.9972529146 | F73: 0.9968976841 | G73: 0.9781126337 | H73: 0.9972822837
A74: 50 | B74: 0.9958294144 | C74: 0.996118524 | D74: 0.9744468231 | E74: 0.996737738 | F74: 0.9957776101 | G74: 0.9955308778 | H74: 0.9961548495
A75: 75 | B75: 0.9952413443 | C75: 0.9956896125 | D75: 0.9959608743 | E75: 0.99712125 | F75: 0.9951508154 | G75: 0.9950681016 | H75: 0.9946642499
A76: 100 | B76: 0.9947901517 | C76: 0.9950920915 | D76: 0.9760488915 | E76: 0.9972238492 | F76: 0.9970440327 | G76: 0.9974976754 | H76: 0.9948270071
A80: μ λ | B80: 0.05 | C80: 0.06 | D80: 0.07 | E80: 0.08 | F80: 0.09 | G80: 0.1 | H80: 0.11 | I80: 0.12 | J80: 0.13 | K80: 0.14 | L80: 0.15
A81: 5 | B81: 0.9867076596 | C81: 0.986723126 | D81: 0.9867724147 | E81: 0.9869886089 | F81: 0.9878627507 | G81: 0.9970430638 | H81: 0.9970433683 | I81: 0.997043902 | J81: 0.9970447252 | K81: 0.9970458966 | L81: 0.997047453
A82: 6 | B82: 0.9974791781 | C82: 0.9846852719 | D82: 0.9974799639 | E82: 0.9974799958 | F82: 0.9974800736 | G82: 0.9974802663 | H82: 0.9974806559 | I82: 0.9974813342 | J82: 0.9974823829 | K82: 0.9974838735 | L82: 0.9974858559
A83: 7 | B83: 0.9978286624 | C83: 0.9978326105 | D83: 0.9978326173 | E83: 0.9978326514 | F83: 0.9978327458 | G83: 0.9978329875 | H83: 0.9978334729 | I83: 0.9978342999 | J83: 0.9978355942 | K83: 0.9978374318 | L83: 0.99783989
A84: 8 | B84: 0.998069143 | C84: 0.9980786201 | D84: 0.9980786249 | E84: 0.9980786658 | F84: 0.9980787848 | G84: 0.998079066 | H84: 0.9980796367 | I84: 0.9980806367 | J84: 0.9980821762 | K84: 0.9980843727 | L84: 0.9980873103
A85: 9 | B85: 0.9982199485 | C85: 0.9982201049 | D85: 0.9982201995 | E85: 0.9982201549 | F85: 0.9982203049 | G85: 0.9982206377 | H85: 0.9982213051 | I85: 0.9982224579 | J85: 0.9982242447 | K85: 0.9982273493 | L85: 0.9982303227
A86: 10 | B86: 0.9983548009 | C86: 0.9982728724 | D86: 0.9982699121 | E86: 0.9982699623 | F86: 0.9982701195 | G86: 0.9982705081 | H86: 0.9982712535 | I86: 0.998272572 | J86: 0.9982746043 | K86: 0.9982802538 | L86: 0.9982942123
A87: 11 | B87: 0.9984367179 | C87: 0.9984367187 | D87: 0.9982440885 | E87: 0.9982441501 | F87: 0.9982443256 | G87: 0.9982447497 | H87: 0.9982455921 | I87: 0.9982470519 | J87: 0.9982563719 | K87: 0.998259478 | L87: 0.9982636929
A88: 12 | B88: 0.9984933755 | C88: 0.9984929041 | D88: 0.9984924358 | E88: 0.9969188335 | F88: 0.9707904371 | G88: 0.9710497025 | H88: 0.9713071089 | I88: 0.9715626271 | J88: 0.971816217 | K88: 0.9720678316 | L88: 0.9723174193
A89: 13 | B89: 0.9969204258 | C89: 0.9984216749 | D89: 0.9984372025 | E89: 0.9984325261 | F89: 0.967140879 | G89: 0.9675063465 | H89: 0.9678807419 | I89: 0.9682613151 | J89: 0.9980328515 | K89: 0.9980367245 | L89: 0.9980419114
A90: 14 | B90: 0.99700623 | C90: 0.997647058 | D90: 0.9976570939 | E90: 0.9956950407 | F90: 0.9978654933 | G90: 0.9978273905 | H90: 0.9977015225 | I90: 0.9976781281 | J90: 0.9977021338 | K90: 0.9978713269 | L90: 0.9973748378
A91: 15 | B91: 0.9932552321 | C91: 0.9977156861 | D91: 0.9974435566 | E91: 0.9976685737 | F91: 0.9976692418 | G91: 0.997627331 | H91: 0.9976281953 | I91: 0.997630005 | J91: 0.9976328819 | K91: 0.9975311339 | L91: 0.9975660387
A95: μ λ | B95: 0.045 | C95: 0.046 | D95: 0.047 | E95: 0.048 | F95: 0.049 | G95: 0.05 | H95: 0.051 | I95: 0.052 | J95: 0.053 | K95: 0.054 | L95: 0.055
A96: 11.5 | B96: 0.9968240637 | C96: 0.9968286686 | D96: 0.996833146 | E96: 0.9968375825 | F96: 0.9968419681 | G96: 0.9968463119 | H96: 0.9968506123 | I96: 0.9968548968 | J96: 0.9968592139 | K96: 0.9982091492 | L96: 0.9982091487
A97: 11.6 | B97: 0.9969001704 | C97: 0.9969071567 | D97: 0.9969141116 | E97: 0.9969210351 | F97: 0.9969279268 | G97: 0.9969350333 | H97: 0.9969416063 | I97: 0.9969483914 | J97: 0.9969551375 | K97: 0.9969618457 | L97: 0.9969685129
A98: 11.7 | B98: 0.996733068 | C98: 0.9967394726 | D98: 0.9967445359 | E98: 0.9967476177 | F98: 0.9967057779 | G98: 0.9967103452 | H98: 0.9967143458 | I98: 0.9967293079 | J98: 0.996718752 | K98: 0.9967792765 | L98: 0.9967831161
A99: 11.8 | B99: 0.9968353955 | C99: 0.9968443242 | D99: 0.9967964807 | E99: 0.996838625 | F99: 0.9968685276 | G99: 0.9968755963 | H99: 0.9968821205 | I99: 0.9968880868 | J99: 0.9968934933 | K99: 0.9968983467 | L99: 0.996902662
A100: 11.9 | B100: 0.9967619037 | C100: 0.9967654657 | D100: 0.9967690293 | E100: 0.9967725955 | F100: 0.9984895904 | G100: 0.9699948281 | H100: 0.9700205357 | I100: 0.9700462262 | J100: 0.9700719009 | K100: 0.9700975592 | L100: 0.9701232008
A101: 12 | B101: 0.9984937607 | C101: 0.9984936098 | D101: 0.9984934825 | E101: 0.998493393 | F101: 0.9984933539 | G101: 0.9984933755 | H101: 0.9984934634 | I101: 0.9984936164 | J101: 0.9984935509 | K101: 0.9984933722 | L101: 0.9984932051
A102: 12.1 | B102: 0.9984960863 | C102: 0.9984959646 | D102: 0.9984959105 | E102: 0.9984959317 | F102: 0.9984960325 | G102: 0.9984962143 | H102: 0.9984960846 | I102: 0.9984957903 | J102: 0.9984955115 | K102: 0.9984952562 | L102: 0.9984950316
A103: 12.2 | B103: 0.9967988954 | C103: 0.9968028549 | D103: 0.996806821 | E103: 0.9984958524 | F103: 0.9984956674 | G103: 0.9984955575 | H103: 0.9984955344 | I103: 0.9984955981 | J103: 0.9984957535 | K103: 0.9984960024 | L103: 0.9984960928
A104: 12.3 | B104: 0.9968025755 | C104: 0.9968065078 | D104: 0.9968104559 | E104: 0.9968144181 | F104: 0.998503315 | G104: 0.9985039591 | H104: 0.9985026151 | I104: 0.998502325 | J104: 0.9985020799 | K104: 0.9985018822 | L104: 0.9985017355
A105: 12.4 | B105: 0.9968049381 | C105: 0.9968087326 | D105: 0.9968125465 | E105: 0.9968163798 | F105: 0.9968202324 | G105: 0.9985124152 | H105: 0.998512309 | I105: 0.9985120987 | J105: 0.9985118063 | K105: 0.9985114509 | L105: 0.9985110483
A106: 12.5 | B106: 0.9968074665 | C106: 0.9968110829 | D106: 0.9968147209 | E106: 0.9968183803 | F106: 0.9968220613 | G106: 0.9968257636 | H106: 0.994696261 | I106: 0.9948317149 | J106: 0.9949571436 | K106: 0.9950736234 | L106: 0.9985158806
A110: μ λ | B110: 0.053 | C110: 0.054 | D110: 0.055 | E110: 0.056 | F110: 0.057 | G110: 0.058 | H110: 0.059 | I110: 0.06
A111: 12.45 | B111: 0.998514376 | C111: 0.9985144802 | D111: 0.9985144231 | E111: 0.9985142317 | F111: 0.998513933 | G111: 0.9985135725 | H111: 0.9985131481 | I111: 0.9985126719
A112: 12.46 | B112: 0.9985145746 | C112: 0.9985148257 | D112: 0.9985148867 | E112: 0.9985147878 | F112: 0.9985145608 | G112: 0.998514254 | H112: 0.9985138714 | I112: 0.998513427
A113: 12.47 | B113: 0.9985146549 | C113: 0.9985150719 | D113: 0.998515268 | E113: 0.9985152768 | F113: 0.9985151343 | G113: 0.9985148906 | H113: 0.9985145578 | I113: 0.9985141515
A114: 12.48 | B114: 0.9985146123 | C114: 0.9985152146 | D114: 0.998515563 | E114: 0.9985156949 | F114: 0.9985156486 | G114: 0.9985154774 | H114: 0.998515203 | I114: 0.9985148427
A115: 12.49 | B115: 0.9950456114 | C115: 0.9985152501 | D115: 0.9985157682 | E115: 0.9985160386 | F115: 0.9985160992 | G115: 0.9985160105 | H115: 0.9985158032 | I115: 0.9985154964
A116: 12.5 | B116: 0.9949571436 | C116: 0.9950736234 | D116: 0.9985158806 | E116: 0.9985163052 | F116: 0.9985164815 | G116: 0.9985164858 | H116: 0.9985163547 | I116: 0.9985161097
A117: 12.51 | B117: 0.9948666653 | C117: 0.9949905772 | D117: 0.9951055922 | E117: 0.9952128376 | F117: 0.9985167915 | G117: 0.9985168994 | H117: 0.998516854 | I117: 0.998516679
A118: 12.52 | B118: 0.9947748919 | C118: 0.9949054821 | D118: 0.995027912 | E118: 0.99514156 | F118: 0.9952340906 | G118: 0.9985172476 | H118: 0.9985172975 | I118: 0.998517201
A119: 12.53 | B119: 0.9946814783 | C119: 0.9948198144 | D119: 0.9949479999 | E119: 0.9950671393 | F119: 0.9951639979 | G119: 0.9952541744 | H119: 0.9985176821 | I119: 0.9985176731
A120: 12.54 | B120: 0.9945865314 | C120: 0.9947323967 | D120: 0.9948682899 | E120: 0.9949890497 | F120: 0.9950923383 | G120: 0.9680720101 | H120: 0.9681046691 | I120: 0.968137316
A121: 12.55 | B121: 0.9678649962 | C121: 0.9678978403 | D121: 0.9679306678 | E121: 0.9679634806 | F121: 0.9679962792 | G121: 0.9680290648 | H121: 0.9680618372 | I121: 0.9680945986
A125: μ λ | B125: 0.056 | C125: 0.057 | D125: 0.058 | E125: 0.059 | F125: 0.06
A126: 12.525 | B126: 0.9951047922 | C126: 0.995199268 | D126: 0.9952871049 | E126: 0.9985174974 | F126: 0.9985174435
A127: 12.526 | B127: 0.9950972744 | C127: 0.995192243 | D127: 0.9952805903 | E127: 0.9985175356 | F127: 0.9985174905
A128: 12.527 | B128: 0.9950897614 | C128: 0.9951852033 | D128: 0.9952739777 | E128: 0.9985175731 | F128: 0.998517537
A129: 12.528 | B129: 0.9950822663 | C129: 0.9951781376 | D129: 0.9952674058 | E129: 0.9985176101 | F129: 0.9985175829
A130: 12.529 | B130: 0.995074691 | C130: 0.9951710743 | D130: 0.9952607976 | E130: 0.9985176464 | F130: 0.9985176282
A131: 12.53 | B131: 0.9950671393 | C131: 0.9951639979 | D131: 0.9952541744 | E131: 0.9985176821 | F131: 0.9985176731
A132: 12.531 | B132: 0.9950595765 | C132: 0.9951568953 | D132: 0.9952475418 | E132: 0.9985177173 | F132: 0.9985177174
A133: 12.532 | B133: 0.9950519451 | C133: 0.9951497621 | D133: 0.995240864 | E133: 0.9985177517 | F133: 0.9985177612
A134: 12.533 | B134: 0.9950443314 | C134: 0.9951426173 | D134: 0.9952342092 | E134: 0.9953194678 | F134: 0.9985178045
A135: 12.534 | B135: 0.9950366241 | C135: 0.9951354666 | D135: 0.9952275162 | E135: 0.9953132198 | F135: 0.9681628211
A136: 12.535 | B136: 0.998092827 | C136: 0.9951283055 | D136: 0.9952208117 | E136: 0.9953069521 | F136: 0.9681585766
A140: μ λ | B140: 0.058 | C140: 0.059 | D140: 0.06 | E140: 0.061 | F140: 0.062
A141: 12.532 | B141: 0.995240864 | C141: 0.9985177517 | D141: 0.9985177612 | E141: 0.9682038456 | F141: 0.9682363805
A142: 12.533 | B142: 0.9952342092 | C142: 0.9953194678 | D142: 0.9985178045 | E142: 0.9681996188 | F142: 0.9682321641
A143: 12.534 | B143: 0.9952275162 | C143: 0.9953132198 | D143: 0.9681628211 | E143: 0.9681953882 | F143: 0.9682279455
A144: 12.535 | B144: 0.9952208117 | C144: 0.9953069521 | D144: 0.9681585766 | E144: 0.9681911559 | F144: 0.9682237241
A145: 12.536 | B145: 0.9952140898 | C145: 0.9681217282 | D145: 0.9681543299 | E145: 0.9681869201 | F145: 0.9682195002
A146: 12.537 | B146: 0.9952073616 | C146: 0.9681174675 | D146: 0.96815008 | E146: 0.9681826823 | F146: 0.9682152736
A147: 12.538 | B147: 0.9952006224 | C147: 0.9681132036 | D147: 0.9681458284 | E147: 0.9681784412 | F147: 0.9682110447
